{"text_format":"1","workbook":"xlsx","n_sheets":20,"sheets":["NAVIGATORE","PIANO ESECUTIVO","ANAGRAFICA","EROGAZIONI","DAREALIZZARE","ANTICIPO","1°SAL","1°SAL_Credito","2°SAL","2°SAL_Credito","3°SAL","3°SAL_Credito","4°SAL","4°SAL_Credito","SALDO","CASISTICA CAPOIII","SALDO_Credito","UNICO","UNICO_Credito","APP"],"not_rendered":{"charts":0,"images":6,"macros":1,"external_links":1,"defined_names":44,"comments":7,"pivot_tables":0},"unopened":[],"bounds":{"document_bytes":16777216,"sheet_cells":100000,"rows_first":2000,"rows_last":500,"rows_between":2000,"halvings":0,"cell_chars":16384,"cell_head_chars":4096},"cells_cut":0,"cells_raw":0,"read":"whole","date_system":"1900"}

{"sheet":"NAVIGATORE","index":0,"n_rows":30,"n_cols":11,"rows_kept":30,"cut":false,"hidden":false,"merged":[[5,1,6,1],[4,1,4,10],[27,1,27,9],[5,2,5,9],[16,1,17,1],[16,2,16,6],[9,10,9,12],[10,10,10,12],[11,10,11,12],[12,10,12,12]]}
[]
[]
[]
[]
[null,"RIEPILOGO AVANZAMENTO"]
[null,"EVENTO EROG.","CONTRIBUTI RICHIESTI"]
[null,null,"ANTICIPO","% FIN. CONCESSO","FATTURE RENDICONTATE (TAB.1)","Quietanzate","Non Quietanzate","TOTALE RICHIESTA (INV )","% INV. AMMESS","EVIDENZE INSERITE PER PAGAMENTI SAL PRECEDENTI"]
[null,"ANTICIPO",{"$f":"+IF(ANTICIPO!C18=\"\",0,ANTICIPO!C18)","v":0},{"$f":"+IF(ISERROR(ANTICIPO!E18),0,ANTICIPO!E18)","v":0}]
[null,"1°SAL",null,null,{"$f":"+'1°SAL'!L38","v":0},{"$f":"+'1°SAL'!D19","v":0},{"$f":"+'1°SAL'!D20","v":0},{"$f":"+E9","v":0},{"$f":"IF(ISERROR(E9/Tot_Inv_AMM),0,E9/Tot_Inv_AMM)","v":0}]
[null,"2°SAL",null,null,{"$f":"+'2°SAL'!L37","v":0},{"$f":"+'2°SAL'!D19","v":0},{"$f":"+'2°SAL'!D20","v":0},{"$f":"+E10","v":0},{"$f":"IF(ISERROR(E10/Tot_Inv_AMM),0,E10/Tot_Inv_AMM)","v":0},{"$f":"IF(E10=0,0,IF('2°SAL'!F62=0,0,'2°SAL'!F62))","v":0},{"$f":"+IF(D20=\"\",\"\", IF(AND(G20>0,J10=G20),\"\",CONCATENATE(\"ATT: non sono state fornite evidenze dell'avvenuto pagamento di precedenti erogazioni per € \",TEXT(G20-J10,\"#.##0.00\"))))","v":""}]
[null,"3°SAL",null,null,{"$f":"+'3°SAL'!L37","v":0},{"$f":"+'3°SAL'!D19","v":0},{"$f":"+'3°SAL'!D20","v":0},0,{"$f":"IF(ISERROR(E11/Tot_Inv_AMM),0,E11/Tot_Inv_AMM)","v":0},{"$f":"IF(E11=0,0,IF('3°SAL'!F62=0,0,'3°SAL'!F62))","v":0},{"$f":"+IF(D21=\"\",\"\", IF(AND(G21>0,J11=G21),\"\",CONCATENATE(\"ATT: non sono state fornite evidenze dell'avvenuto pagamento di precedenti erogazioni per € \",TEXT(G21-J11,\"#.##0.00\"))))","v":""}]
[null,"4°SAL",null,null,{"$f":"+'4°SAL'!L37","v":0},{"$f":"+'4°SAL'!D19","v":0},{"$f":"+'4°SAL'!D20","v":0},0,{"$f":"IF(ISERROR(E12/Tot_Inv_AMM),0,E12/Tot_Inv_AMM)","v":0},{"$f":"IF(E12=0,0,IF('4°SAL'!F62=0,0,'4°SAL'!F62))","v":0},{"$f":"+IF(D22=\"\",\"\", IF(AND(G22>0,J12=G22),\"\",CONCATENATE(\"ATT: non sono state fornite evidenze dell'avvenuto pagamento di precedenti erogazioni per € \",TEXT(G22-J12,\"#.##0.00\"))))","v":""}]
[null,"SALDO",null,null,{"$f":"+SALDO!K36","v":0},{"$f":"+E13","v":0},null,0,{"$f":"IF(ISERROR(E13/Tot_Inv_AMM),0,E13/Tot_Inv_AMM)","v":0},{"$f":"IF(E13=0,0,IF(SALDO!F61=0,0,SALDO!F61))","v":0},{"$f":"+IF(D23=\"\",\"\", IF(AND(G23>0,J13=G23),\"\",CONCATENATE(\"ATT: non sono state fornite evidenze dell'avvenuto pagamento di precedenti erogazioni per € \",TEXT(G23-J13,\"#.##0.00\"))))","v":""}]
[null,null,{"$f":"SUM(C8:C13)","v":0},null,{"$f":"SUM(E9:E13)","v":0},{"$f":"SUM(F9:F13)","v":0},0,0,0,0]
[]
[]
[null,"EVENTO EROG.","CONTRIBUTI EROGATI"]
[null,null,"DATA RICHIESTA","DATA VALUTA","AGEVOLAZIONE CONCESSA","di cui FATT. Quietanzate","di cui FATT. Non Quietanzate"]
[null,"ANTICIPO",{"$f":"+IF(EROGAZIONI!C4=\"\",\"\",EROGAZIONI!C4)","v":""},{"$f":"+IF(EROGAZIONI!D4=\"\",\"\",EROGAZIONI!D4)","v":""},{"$f":"+EROGAZIONI!E4","v":0}]
[null,"1°SAL",{"$f":"+IF(EROGAZIONI!C5=\"\",\"\",EROGAZIONI!C5)","v":""},{"$f":"+IF(EROGAZIONI!D5=\"\",\"\",EROGAZIONI!D5)","v":""},{"$f":"+EROGAZIONI!E5","v":0},{"$f":"+EROGAZIONI!F5","v":0},{"$f":"+EROGAZIONI!G5","v":0}]
[null,"2°SAL",{"$f":"+IF(EROGAZIONI!C6=\"\",\"\",EROGAZIONI!C6)","v":""},{"$f":"+IF(EROGAZIONI!D6=\"\",\"\",EROGAZIONI!D6)","v":""},{"$f":"+EROGAZIONI!E6","v":0},{"$f":"+EROGAZIONI!F6","v":0},{"$f":"+EROGAZIONI!G6","v":0}]
[null,"3°SAL",{"$f":"+IF(EROGAZIONI!C7=\"\",\"\",EROGAZIONI!C7)","v":""},{"$f":"+IF(EROGAZIONI!D7=\"\",\"\",EROGAZIONI!D7)","v":""},{"$f":"+EROGAZIONI!E7","v":0},{"$f":"+EROGAZIONI!F7","v":0},{"$f":"+EROGAZIONI!G7","v":0}]
[null,"4°SAL",{"$f":"+IF(EROGAZIONI!C8=\"\",\"\",EROGAZIONI!C8)","v":""},{"$f":"+IF(EROGAZIONI!D8=\"\",\"\",EROGAZIONI!D8)","v":""},{"$f":"+EROGAZIONI!E8","v":0},{"$f":"+EROGAZIONI!F8","v":0},{"$f":"+EROGAZIONI!G8","v":0}]
[null,"SALDO",{"$f":"+IF(EROGAZIONI!C9=\"\",\"\",EROGAZIONI!C9)","v":""},{"$f":"+IF(EROGAZIONI!D9=\"\",\"\",EROGAZIONI!D9)","v":""},{"$f":"+EROGAZIONI!E9","v":0},{"$f":"+EROGAZIONI!F9","v":0},{"$f":"+EROGAZIONI!G9","v":0}]
[null,null,null,null,{"$f":"SUM(E19:E24)","v":0},{"$f":"SUM(F20:F24)","v":0},0]
[]
[]
[null,"RIEPILOGO IMPORTI RICHIESTI UNICA SOLUZIONE"]
[null,"EVENTO EROG.",null,null,"FATTURE RENDICONTATE (TAB.1)",null,null,"TOTALE RICHIESTA CONTRIBUTO CONCESSO","% INV. AMMESS"]
[null,"UNICO",null,null,{"$f":"+UNICO!K37","v":0},null,null,{"$f":"+E30","v":0},{"$f":"IFERROR(+E30/Tot_Inv_AMM,0)","v":0}]

{"sheet":"PIANO ESECUTIVO","index":1,"n_rows":45,"n_cols":8,"rows_kept":45,"cut":false,"hidden":false,"merged":[[44,1,44,7],[42,1,42,4],[43,1,43,4],[10,1,10,4],[17,1,17,4],[24,1,24,4],[31,1,31,4],[37,1,37,4]]}
[]
[]
[]
[null,"Preventivo/Fattura","Fornitore","Descrizione","Macrovoce di spesa ","Imponibile","IVA","Totale"]
[]
[]
[]
[]
[]
[]
[null,"TOTALE OPERE MURARIE",null,null,null,{"$f":"+SUM(F5:F10)","v":0},{"$f":"+SUM(G5:G10)","v":0},{"$f":"+SUM(H5:H10)","v":0}]
[]
[]
[]
[]
[]
[]
[null,"TOTALE MACCHINARI, IMPIANTI ED ATTREZZATURE",null,null,null,{"$f":"+SUM(F12:F17)","v":0},{"$f":"+SUM(G12:G17)","v":0},{"$f":"+SUM(H12:H17)","v":0}]
[]
[]
[]
[]
[]
[]
[null,"TOTALE PROGRAMMI INFORMATICI E SERVIZI PER LE TECNOLOGIE DELL’INFORMAZIONE E DELLA COMUNICAZIONE",null,null,null,{"$f":"+SUM(F19:F24)","v":0},{"$f":"+SUM(G19:G24)","v":0},{"$f":"+SUM(H19:H24)","v":0}]
[]
[]
[]
[]
[]
[]
[null,"TOTALE BREVETTI, LICENZE E MARCHI",null,null,null,{"$f":"+SUM(F26:F31)","v":0},{"$f":"+SUM(G26:G31)","v":0},{"$f":"+SUM(H26:H31)","v":0}]
[]
[]
[]
[]
[]
[null,"TOTALE CONSULENZE SPECIALISTICHE CAPITALIZZABILI",null,null,null,{"$f":"+SUM(F33:F37)","v":0},{"$f":"+SUM(G33:G37)","v":0},{"$f":"+SUM(H33:H37)","v":0}]
[]
[]
[]
[]
[null,"TOTALE ONERI CONNESSI ALLA STIPULA CONTRATTO DI FINANZIAMENTO E PER LA COSTITUZIONE DELLA SOCIETÀ",null,null,null,{"$f":"+SUM(F39:F42)","v":0},0,0]
[null,"TOTALE INVESTIMENTO",null,null,null,{"$f":"+F43+F38+F32+F25+F18+F11","v":0},0,0]
[null,{"$f":"+IF(F44>ANAGRAFICA!C16,+_xlfn.CONCAT(\"ATTENZIONE! LE SPESE INDICATE NEL PIANO ESECUTIVO RISULTANO ESSERE MAGGIORI RISPETTO A QUELLE INDICATE COME DA REALIZZARE NEL CONTRATTO PER UN IMPORTO DI  \",TEXT('PIANO ESECUTIVO'!F44-ANAGRAFICA!C16,\"€ #.###,00\"),\". IN SEDE DI SAL, QUALORA LE SPESE DA VOI INDICATE NEL PIANO ESECUTIVO FOSSERO VALUTATE COME DA REALIZZARE, \",\"L’ECCEDENZA DI CUI SOPRA SARÀ A CARICO DELLA SOCIETÀ BENEFICIARIA IN QUANTO LE AGEVOLAZIONI NON POSSONO ESSERE RIMODULATE IN RIALZO RISPETTO A QUANTO PREVISTO DA CONTRATTO.\"),IF(F44<ANAGRAFICA!C16,+_xlfn.CONCAT(\"ATTENZIONE! LE SPESE INDICATE NEL PIANO ESECUTIVO RISULTANO ESSERE MINORI RISPETTO A QUELLE INDICATE COME DA REALIZZARE NEL CONTRATTO PER UN IMPORTO DI  \",TEXT(ANAGRAFICA!C16-'PIANO ESECUTIVO'!F44,\"€ #.###,00\"),\". IN SEDE DI SAL, QUALORA FOSSE ACCERTATA LA RIDUZIONE DI SPESA COMPLESSIVA DA SOSTENERSI AL FINE DELLA REALIZZAZIONE DEL PROGETTO, \",\" LE AGEVOLAZIONI CONCEDIBILI SARANNO RIPARAMETRATE PROPORZIONALMENTE AGLI IMPORTI AMMESSI RISPETTO AL VALORE PREVISTO DA CONTRATTO.\",\"\"),\"\"))","v":""}]

{"sheet":"ANAGRAFICA","index":2,"n_rows":21,"n_cols":10,"rows_kept":21,"cut":false,"hidden":false,"merged":[[4,9,4,18],[5,9,5,18],[6,9,6,18],[8,10,8,15],[9,10,9,15],[11,10,11,15],[17,2,17,4],[20,2,20,4],[19,2,19,4],[18,2,18,4],[15,6,16,15],[10,10,10,15],[1,2,1,4],[1,6,1,7],[16,2,16,4],[5,2,5,7],[2,2,2,7],[4,2,4,7],[3,2,3,7],[7,2,7,5],[8,2,8,7],[9,2,9,7],[10,4,10,7],[15,2,15,4],[11,2,11,5],[12,2,12,5],[6,2,6,5]]}
[]
[null,"IDPROGETTO (SB13C0000XXX)",null,null,null,"CAPO",null,null,"Regime di aiuti"]
[null,"Referente"]
[null,"Codice fiscale"]
[null,"Tipologia rappresentanza",null,null,null,null,null,null,null,{"$f":"+IF(C5=\"Procuratore Speciale\",\"La procura deve essere formata direttamente su supporto informatico, sottoscritta digitalmente dal Legale Rappresentante della Società.\",\"\")","v":""}]
[null,"Denominazione società",null,null,null,null,null,null,null,{"$f":"+IF(C5=\"Procuratore Speciale\",\"Deve essere corredata da autentica notarile digitale di firma, resa da un Notaio, il quale attesti i poteri e le qualità della persona che la conferisce ai sensi art. 25, comma 1, D.Lgs. 7/3/05, n. 82 e ss.mm.ii..\",\"\")","v":""}]
[null,"Indirizzo sede legale e CAP",null,null,null,null,"CAP",null,null,{"$f":"+IF(C5=\"Procuratore Speciale\",\"L’allegazione della procura non è necessaria laddove si tratti della medesima procura, se del caso, già acquisita in sede di stipula del contratto di finanziamento agevolato\",\"\")","v":""}]
[null,"Comune e provincia sede legale",null,null,null,null,"(PR)"]
[null,"PEC",null,null,null,null,null,null,null,"Istituto di credito"]
[null,"Partita IVA",null,null,null,null,null,null,null,"Filiale/Agenzia"]
[null,"Iscrizione al Registro imprese",null,"di",null,null,null,null,null,"Provincia"]
[null,"Indirizzo sede operativa e CAP",null,null,null,null,"CAP",null,null,"IBAN"]
[null,"Comune e provincia sede operativa",null,null,null,null,"(PR)"]
[]
[]
[null,"Investimento Totale da realizzare da contratto",null,null,null,null,{"$f":"+'PIANO ESECUTIVO'!B45","v":""}]
[null,"Investimento Totale Ammesso da contratto"]
[null,"Totale Ammesso da contratto",{"$f":"+C17","v":0}]
[null,"Agevolazione a mutuo da contratto"]
[null,"Agevolazione a fondo perduto da contratto"]
[null,"Totale Agevolazione concessa da contratto",{"$f":"+C19+C20","v":0}]

{"sheet":"EROGAZIONI","index":3,"n_rows":10,"n_cols":7,"rows_kept":10,"cut":false,"hidden":false,"merged":[]}
[]
[]
[null,"EVENTO EROG.","DATA RICHIESTA","DATA VALUTA","AGEVOLAZIONE CONCESSA","PER FATT. Quietanzate","PER FATT. Non Quietanzate"]
[null,"ANTICIPO"]
[null,"1°SAL"]
[null,"2°SAL"]
[null,"3°SAL"]
[null,"4°SAL"]
[null,"SALDO"]
[null,null,null,null,{"$f":"SUM(E4:E9)","v":0},{"$f":"SUM(F5:F9)","v":0},0]

{"sheet":"DAREALIZZARE","index":4,"n_rows":11,"n_cols":11,"rows_kept":11,"cut":false,"hidden":false,"merged":[[2,1,2,10]]}
[]
[]
[null,"DETTAGLIO FATTURE INVESTIMENTI DA REALIZZARE E NON AMMESSI ALLE AGEVOLAZIONI"]
[null,"N. fatt.","Fornitore ","Data fatt.","Descrizione","Imponibile SIVA","Importo IVA","Importo totale ","Modalità Pagamento","Data Pagamento","Categoria di spesa"]
[]
[]
[]
[]
[]
[]
[null,null,null,null,null,{"$f":"SUM(F5:F10)","v":0},{"$f":"SUM(G5:G10)","v":0},0]

{"sheet":"ANTICIPO","index":5,"n_rows":43,"n_cols":10,"rows_kept":43,"cut":false,"hidden":false,"merged":[[1,1,1,9],[24,1,24,9],[9,1,10,1],[20,1,22,9],[18,1,18,9],[19,1,19,9],[9,2,10,9],[12,2,12,3],[12,6,12,9],[14,2,14,9],[16,1,16,9],[26,1,26,6],[38,1,38,4],[41,7,42,9],[3,2,3,7],[5,1,5,6],[5,7,5,9],[7,1,7,9],[30,1,30,5],[31,1,31,4],[33,1,33,4],[34,1,34,4],[37,1,37,5],[32,1,32,5],[39,1,39,4],[36,1,36,4],[35,1,35,4]]}
[]
[" ","RICHIESTA EROGAZIONE ANTICIPO"]
[]
[null,"La Società",{"$f":"+IF(ANAGRAFICA!C6=\"\",\"\",ANAGRAFICA!C6)","v":""},null,null,null,null,null,"Progetto N.",{"$f":"+IF(ANAGRAFICA!C2=\"\",\"\",ANAGRAFICA!C2)","v":""}]
[]
[null,"nella persona del SUO",null,null,null,null,null,{"$f":"+IF(ANAGRAFICA!C5=\"\",\"\",ANAGRAFICA!C5)","v":""}]
[]
[null,{"$f":"IF(OR(ANAGRAFICA!C3=\"\",ANAGRAFICA!C4=\"\"),\"\",CONCATENATE(ANAGRAFICA!C3, \" codice fiscale \",ANAGRAFICA!C4))","v":""}]
[]
[null,"Sede in",{"$f":"+IF(OR(ANAGRAFICA!C7=\"\",ANAGRAFICA!C8=\"\",ANAGRAFICA!H8=\"\"),\"\",CONCATENATE(ANAGRAFICA!C7,\" - \",ANAGRAFICA!C8,\" (\",ANAGRAFICA!H8,\")\"))","v":""}]
[]
[]
[null,"Partita IVA",{"$f":"+IF(ANAGRAFICA!C10=\"\",\"\",ANAGRAFICA!C10)","v":""},null,null,"CCIAA",{"$f":"+IF(OR(ANAGRAFICA!C11=\"\",ANAGRAFICA!E11=\"\"),\"\",CONCATENATE(ANAGRAFICA!C11,\" al N° \",ANAGRAFICA!E11))","v":""}]
[]
[null,"PEC",{"$f":"+ANAGRAFICA!C9","v":0}]
[]
[null,"CHIEDE L'EROGAZIONE DELL'ANTICIPO"]
[null,"per l'importo di",null,"pari al",{"$f":"IFERROR(IF(C18/ANAGRAFICA!C21<=40%,C18/ANAGRAFICA!C21,\"Errore\"),0)","v":0},"del valore del finanziamento concesso di €",null,null,null,{"$f":"+IF(ANAGRAFICA!C21=0,\"\",ANAGRAFICA!C21)","v":""}]
[null,{"$f":"+CONCATENATE(\"La somma eventualmente erogata dovrà essere accreditata sul c/c bancario intestato alla Società istituito presso l'istituto di credito \",ANAGRAFICA!K9,\" - Filiale/Agenzia \",ANAGRAFICA!K10)","v":"La somma eventualmente erogata dovrà essere accreditata sul c/c bancario intestato alla Società istituito presso l'istituto di credito  - Filiale/Agenzia "}]
[null,{"$f":"+CONCATENATE(\"IBAN di riferimento - \",ANAGRAFICA!K12)","v":"IBAN di riferimento - "}]
[null,"Detto conto corrente è dedicato, ancorché in via non esclusiva, al ricevimento delle agevolazioni concesse alla medesima società beneficiaria ai sensi del Decreto interministeriale MiSE - MEF 4 dicembre 2020."]
[]
[]
[]
[null,"1 - LA RICHIESTA DI EROGAZIONE DEVE ESSERE CORREDATA PENA DECADENZA DALLA SEGUENTE DOCUMENTAZIONE"]
[]
[null,"DICHIARAZIONI RICHIESTE PER ANTIMAFIA"]
[null,"ANT 1 - Dichiarazione Antimafia Società o ANT 2 - Dichiarazione Antimafia Cooperative",null,null,null,null,{"$f":"+IF(ANAGRAFICA!$C$21>=150000,\"Obbl.\",\"\")","v":""}]
[null,"ANT 3 - Familiari ",null,null,null,null,{"$f":"+IF(ANAGRAFICA!$C$21>=150000,\"Obbl.\",\"\")","v":""},{"$f":"+IF(ANAGRAFICA!C18>=150000,\"x\",\"\")","v":""}]
[]
[null,"GARANZIE"]
[null,"Fideiussione o polizza fideiussioria",null,null,null,"Obbl."]
[null,"DICHIARAZIONE SOSTITUTIVE ATTO NOTORIO"]
[null,"MOD 1 - Dichiarazioni Complessive",null,null,null,"Obbl."]
[null,"MOD 3 - Assenza Precedenti",null,null,null,"Obbl."]
[null,"MOD 7 - Dichiarazione DURC",null,null,null,"Obbl."]
[null,"MOD 8 – Dichiarazione Antiriciclaggio",null,null,null,"Obbl."]
[null,"ATTESTAZIONI E DOCUMENTI"]
[null," - Copia di un documento di riconoscimento in corso di validità",null,null,null,"Obbl."]
[null,"- Il presente documento dovrà essere inviato in excel e in pdf tramite l'apposito pulsante in alto a destra \"Stampa ANTICIPO\". I precedenti file dovranno essere firmati digitalmente dal Legale Rappresentante",null,null,null,"Obbl."]
[]
[null,null,"LUOGO E DATA",null,null,null,null,{"$f":"+CONCATENATE(\"FIRMA DIGITALE DEL \",ANAGRAFICA!C5)","v":"FIRMA DIGITALE DEL "}]
[null,null,{"$f":"+CONCATENATE(ANAGRAFICA!C27,\" \",TEXT(TODAY(),\"gg/mm/aaaa\"))","v":" 07/11/2024"}]

{"sheet":"1°SAL","index":6,"n_rows":102,"n_cols":12,"rows_kept":102,"cut":false,"hidden":false,"merged":[[96,1,96,4],[97,1,97,4],[66,1,66,5],[78,1,78,5],[91,1,91,4],[92,1,92,4],[93,1,93,4],[95,1,95,4],[85,1,85,4],[87,1,87,4],[89,1,89,4],[79,1,79,4],[81,1,81,4],[82,1,82,4],[47,1,47,2],[29,1,29,11],[84,1,84,4],[71,1,71,4],[72,1,72,4],[73,1,73,4],[74,1,74,4],[75,1,75,4],[80,1,80,4],[83,1,83,4],[76,1,76,4],[1,1,1,10],[3,2,3,7],[5,1,5,6],[5,7,5,10],[7,1,7,10],[22,1,24,10],[12,2,12,3],[12,6,12,10],[14,2,14,10],[15,1,15,10],[17,1,17,10],[9,2,10,10],[9,1,10,1],[19,5,19,10],[20,1,20,10],[21,1,21,10],[26,1,26,11],[57,7,58,11],[60,1,60,11],[100,7,101,11],[62,1,62,6],[86,1,86,4],[90,1,90,4],[88,1,88,4],[94,1,94,4],[67,1,67,4],[68,1,68,4],[70,1,70,5],[54,1,54,9],[41,1,41,3],[31,1,31,2],[38,6,38,10]]}
[]
[" ","RICHIESTA EROGAZIONE 1° SAL"]
[]
[null,"La Società",{"$f":"+IF(ANAGRAFICA!C6=\"\",\"\",ANAGRAFICA!C6)","v":""},null,null,null,null,null,null,"Progetto N.",{"$f":"+IF(ANAGRAFICA!C2=\"\",\"\",ANAGRAFICA!C2)","v":""}]
[]
[null,"nella persona del ",null,null,null,null,null,{"$f":"+IF(ANAGRAFICA!C5=\"\",\"\",ANAGRAFICA!C5)","v":""}]
[]
[null,{"$f":"IF(OR(ANAGRAFICA!C3=\"\",ANAGRAFICA!C4=\"\"),\"\",CONCATENATE(ANAGRAFICA!C3, \" codice fiscale \",ANAGRAFICA!C4))","v":""}]
[]
[null,"Sede in",{"$f":"+IF(OR(ANAGRAFICA!C7=\"\",ANAGRAFICA!C8=\"\",ANAGRAFICA!H8=\"\"),\"\",CONCATENATE(ANAGRAFICA!C7,\" - \",ANAGRAFICA!C8,\" (\",ANAGRAFICA!H8,\")\"))","v":""}]
[]
[]
[null,"Partita IVA",{"$f":"+IF(ANAGRAFICA!C10=\"\",\"\",ANAGRAFICA!C10)","v":""},null,null,"CCIAA",{"$f":"+IF(OR(ANAGRAFICA!C11=\"\",ANAGRAFICA!E11=\"\"),\"\",CONCATENATE(ANAGRAFICA!C11,\" al N° \",ANAGRAFICA!E11))","v":""}]
[]
[null,"PEC",{"$f":"+IF(ANAGRAFICA!C9=\"\",\"\",ANAGRAFICA!C9)","v":""}]
[null,"CHIEDE L'EROGAZIONE DEL 1° SAL"]
[null,"per un importo pari ad €",null,{"$f":"+L38","v":0},"così ripartito:"]
[null,{"$f":"IFERROR(_xlfn.CONCAT(\"- Investimenti: € \",IF(L38=0,0,TEXT(L38,\"#.##0.00,00\")),\" corrispondenti al \",TEXT(L38/ANAGRAFICA!C17,\"0,0%\"), \" del valore degli investimenti ammessi alle agevolazioni pari ad  € \",TEXT(ANAGRAFICA!C17,\"#.##0.00\"),\" e così suddivisi:\"),\"\")","v":""}]
[null,"- Fatture quietanzate pari ad €",null,{"$f":"SUMIFS(L34:L37,J34:J37,\"SI\")","v":0}]
[null,"- Fatture NON quietanzate pari ad €",null,{"$f":"SUMIFS(L34:L37,J34:J37,\"NO\")","v":0},null,{"$f":"IFERROR(IF(D20/ANAGRAFICA!C17>20%,\"Superato limite del 20% per il 1° SAL previsto dalla normativa\",\"\"),\"\")","v":""}]
[null,{"$f":"+CONCATENATE(\"La somma eventualmente erogata dovrà essere accreditata sul c/c bancario intestato alla Società istituito presso l'istituto di credito \",ANAGRAFICA!K9,\" - Filiale/Agenzia \",ANAGRAFICA!K10)","v":"La somma eventualmente erogata dovrà essere accreditata sul c/c bancario intestato alla Società istituito presso l'istituto di credito  - Filiale/Agenzia "}]
[null,{"$f":"+CONCATENATE(\"IBAN di riferimento - \",ANAGRAFICA!K12)","v":"IBAN di riferimento - "}]
[null,"Detto conto corrente è dedicato, ancorché in via non esclusiva, al ricevimento delle agevolazioni concesse alla medesima società beneficiaria ai sensi dell'Ordinanza Ministeriale n.25 del 30 giugno 2022."]
[]
[]
[]
[null,"DETTAGLIO FATTURE RENDICONTATE"]
[]
[null,"1. ELENCO COMPLESSIVO DELLE FATTURE RENDICONTATE"]
[null,{"$f":"+CONCATENATE(\"Valore minimo rendicontabile è pari ad € \",TEXT(ANAGRAFICA!C17*0.1,\"#.##0.00\"),\" ed il valore delle fatture non quietanzate non può essere superiore ad € \",TEXT(ANAGRAFICA!C17*0.2,\"#.##0.00\"))","v":"Valore minimo rendicontabile è pari ad € 000 ed il valore delle fatture non quietanzate non può essere superiore ad € 000"}]
[]
[null,"Fornitore "]
[null,"Partita IVA","Denominazione ","N. fatt.","Data fatt.","Descrizione","Imponibile fattura (*)","IVA e altri oneri","Importo fattura totale ","Quietanza Fatture","Categoria di spesa","Imponibile richiesto"]
[]
[]
[]
[]
[null,null,null,null,null,null,{"$f":"SUM(G34:G37)","v":0},{"$f":"SUM(H34:H37)","v":0},0,null,null,{"$f":"SUM(L34:L37)","v":0}]
[null,null,null,null,null,null,"(*) Nel caso in cui l'impresa svolga esclusivamente attività ricompresa nel settore medico/sanitario (esente IVA),  il costo dell'IVA indetraibile, qualora richiesto ad agevolazione e come indicato nel Piano Esecutivo, va indicato insieme al valore dell'imponibile."]
[]
[]
[null,"La beneficiaria ha maturato e fruito di altre agevolazioni sui beni rendicontati",null,null,"NO"]
[]
[]
[]
[null,"2. DETTAGLIO DELLE MODALITA' DI PAGAMENTO DELLE FATTURE QUIETANZATE"]
[]
[null,"Fornitore "]
[null,"Partita IVA","Denominazione ","N. fatt.","Data fatt.","Importo singolo pagamento","Modalità di pagamento","Data pagamento"]
[]
[]
[]
[]
[null,null,null,null,null,{"$f":"SUM(F50:F53)","v":0}]
[null,"Tutte le fatture devono essere registrate nei libri contabili e/o registri fiscali previsti dal regime fiscale adottato e nel rispetto della normativa vigente"]
[]
[]
[null,null,"LUOGO E DATA",null,null,null,null,{"$f":"+CONCATENATE(\"FIRMA DIGITALE DEL \",ANAGRAFICA!C5)","v":"FIRMA DIGITALE DEL "}]
[null,null,{"$f":"+CONCATENATE(ANAGRAFICA!C8,\" \",TEXT(TODAY(),\"gg/mm/aaaa\"))","v":" 07/11/2024"}]
[]
[null,"LA RICHIESTA DI EROGAZIONE DEVE ESSERE CORREDATA PENA DECADENZA DALLA SEGUENTE DOCUMENTAZIONE"]
[]
[null,"DICHIARAZIONI RICHIESTE PER ANTIMAFIA"]
[null,"ANT 1 - Dichiarazione Antimafia Società o ANT 2 - Dichiarazione Antimafia Cooperative",null,null,null,null,{"$f":"+IF(ANAGRAFICA!$C$21>=150000,\"Obbl.\",\"\")","v":""}]
[null,"ANT 3 - Familiari ",null,null,null,null,{"$f":"+IF(ANAGRAFICA!$C$21>=150000,\"Obbl.\",\"\")","v":""}]
[]
[null,"GARANZIE"]
[null,"Privilegio Speciale",null,null,null,{"$f":"+IF(ANAGRAFICA!C18>=250000,\"Obbl.\",\"\")","v":""}]
[null,"Ipoteca 1° Grado immobile nel caso di costruzione di immobile",null,null,null,{"$f":"IF(COUNTIF('1°SAL'!K34:K37,APP!D2)>0,\"Obbl.\",0)","v":0}]
[]
[null,"DICHIARAZIONE SOSTITUTIVE ATTO NOTORIO"]
[null,"MOD 1 - Dichiarazioni Complessive",null,null,null,"Obbl."]
[null,"MOD 2 - Dichiarazione Fornitori. Nei casi in cui il mancato ottenimento delle precedenti quietanze di pagamento sia ascrivibile a cause non imputabili alla volontà del soggetto beneficiario, quest’ultimo è tenuto a inviare  la sua formale richiesta da notificare tramite PEC da inoltrare all'indirizzo del fornitore comunicato in camera di commercio mettendo tra i destinatari in copia conoscenza Invitalia (nextappennino_on@postacert.invitalia.it)",null,null,null,"Obbl.",null," "]
[null,"MOD 3 - Dichiarazione Assenza Precedenti",null,null,null,"Obbl."]
[null,"MOD 4 – Dichiarazioni Cedente",null,null,null,"Obbl. in caso di beni presso terzi"]
[null,"MOD 5 – Dichiarazione Impegno Cessionario",null,null,null,"Obbl. in caso di beni presso terzi"]
[null,"MOD 8 – Dichiarazione Antiriciclaggio",null,null,null,"Obbl."]
[]
[null,"ATTESTAZIONI E DOCUMENTI"]
[null," - Copia di un documento di riconoscimento in corso di validità",null,null,null,"Obbl."]
[null,"- Il presente documento dovrà essere inviato in excel e in pdf tramite l'apposito pulsante in alto a destra \"Stampa 1°SAL\". I precedenti file dovranno essere firmati digitalmente dal Legale Rappresentante",null,null,null,"Obbl."]
[null," - DSAN DURC",null,null,null,"Obbl."]
[null," - Copia dei titoli di spesa delle spese agevolate  e della contrattualistica di fornitura [Nota: I titoli di spesa devono riportare, nell’oggetto o nel campo note, l’indicazione del codice CUP (Codice Unico progetto) o della misura agevolativa “ON SISMA” nel caso di spese realizzate prima della ricezione della delibera di ammissione]",null,null,null,"Obbl."]
[null,"- Documento di trasporto (DDT) relativamente ai beni mobili oggetto di rendicontazione",null,null,null,"Obbl."]
[null," - Copia sottoscritta digitalmente dal Legale Rappresentante del libro cespiti ammortizzabili con evidenza delle registrazioni delle fatture rendicontate ",null,null,null,"Obbl."]
[null," - Copia sottoscritta digitalmente dal Legale Rappresentante del libro giornale, con evidenza delle registrazioni delle fatture rendicontate e, se quietanzate, dei relativi pagamenti",null,null,null,"Obbl."]
[null," - Copia sottoscritta digitalmente dal Legale Rappresentante del partitario fornitori, con evidenza delle registrazioni delle fatture rendicontate e, se quietanzate, dei relativi pagamenti",null,null,null,"Obbl."]
[null," - Copia sottoscritta digitalmente dal Legale Rappresentante degli estratti conto bancari o lista movimenti nel caso in cui l'estratto conto non sia disponibile. Si segnala che la lista movimenti deve contenere al suo interno tutti i riferimenti al c/c e al titolare dello stesso. I precedenti documenti devono evidenziare i pagamenti effettuati rispetto alle:\n a) spese sostenute e richieste nel SAL in corso (Tab. 2)\n b) spese rendicontate nel SAL precedente e successivamente pagate (Tab. 3) (solo per i SAL successivi al 1°)",null,null,null,"Obbl."]
[null,"- Delibera assembleare con l'impegno all'apporto privato nelle forme e nell'ammontare definite dal contratto",null,null,null,"Obbl."]
[null," - Situazione patrimoniale, all’ultima data utile, con evidenza dell'eventuale costituzione dell'impegno (rif. delibera assembleare)  ad effettuare l'apporto finanziario privato ed i relativi versamenti",null,null,null,"Obbl."]
[null," - Ultimo bilancio depositato",null,null,null,"Obbl."]
[null," - Perizia Asseverata che attesti la rispondenza dell’immobile agli specifici vincoli edilizi, urbanistici e di destinazione d’uso ovvero la loro avvenuta richiesta, laddove gli stessi non siano stati ancora rilasciati. La perizia deve essere presentata in caso di ultimazione degli interventi di nuova costruzione.",null,null,null,"Obbl. in caso di nuova costruzione"]
[null," - Relazione Tecnica del Direttore Lavori/Cantiere dello stato di avanzamento dei lavori connessi alle Opere Murarie (agevolate e non agevolate) relativa a:\n a) richieste e rilascio di permessi ed autorizzazioni abilitative all'avvio delle opere\n b) lavori realizzati\n c) lavori da realizzare\n d) variazioni eventuali intervenute in corso d'opera rispetto agli interventi approvati",null,null,null,"Obbl. in caso di spese per Opere Murarie"]
[null," - Documenti richiamati dalla perizia acquisiti durante l’iter autorizzativo alle Opere Murarie (es. C.I.L.A.)",null,null,null,"Obbl. in caso di spese per Opere Murarie e/o di nuova costruzione"]
[null,"- Per Impianti, macchinari e attrezzature che necessitano di autorizzazione e/o collaudi e/o dichiarazione di conformità, trasmetterne copia",null,null,null,"Obbl. nei casi richiamati"]
[null," - Copia dei contratti di acquisto dei beni mobili registrati e - in caso di mezzi targati - della carta di circolazione e del certificato di proprietà",null,null,null,"Obbl. in caso di spese specifiche"]
[null," - Attestazione dello stato di avanzamento degli interventi e della realizzazione del piano degli investimenti delle spese non agevolate (se previste), funzionali alla realizzazione del programma di investimento ",null,null,null,"Obbl. per spese realizzate ma non agevolate"]
[null,"- In caso di rendicontazione di spese relative ad attrezzature installate presso unità produttive diverse dall’unità interessata dal programma agevolato:\na) copia del libro dei beni prestati a terzi\nb) copia del titolo di disponibilità in uso a titolo gratuito, da parte del cessionario, delle attrezzature agevolate installate presso unità produttive diverse dall’unità produttiva interessata dal programma agevolato\nc) copia dei documenti di trasporto tenuti ai sensi del D.P.R. 6 ottobre 1978, n. 627, e del D.M. 29 novembre 1978 e ss.mm.ii., da cui risulta l’ubicazione di ciascun bene",null,null,null,"Obbl. in caso di spese specifiche"]
[]
[]
[null,null,"LUOGO E DATA",null,null,null,null,{"$f":"+H58","v":"FIRMA DIGITALE DEL "}]
[null,null,{"$f":"+CONCATENATE(ANAGRAFICA!C45,\" \",TEXT(TODAY(),\"gg/mm/aaaa\"))","v":" 07/11/2024"}]

{"sheet":"1°SAL_Credito","index":7,"n_rows":12,"n_cols":8,"rows_kept":12,"cut":false,"hidden":false,"merged":[[2,0,2,7],[11,0,11,7]]}
[]
[]
["Dettaglio delle agevolazione fruite sui beni oggetto dell'investimento"]
["N. fatt.","Fornitore ","Data fatt.","Bene","Valore Imponibile  Bene","Tipo di agevolazione","Agevolazione maturata totale","di cui fruita"]
[]
[]
[]
[]
[null,null,null,null,{"$f":"+SUM(E5:E8)","v":0},null,{"$f":"+SUM(G5:G8)","v":0},{"$f":"+SUM(H5:H8)","v":0}]
[]
[]
["La tabella deve riepilogare i beni oggetto di altre agevolazione (credito di imposta, fondi regionali ecc..), indicando le relative fatture e fornitore. Pertanto beni/fatture che non si riferiscono a beni oggetto di altre agevolazioni non dovranno essere elencati/e."]

{"sheet":"2°SAL","index":8,"n_rows":111,"n_cols":12,"rows_kept":111,"cut":false,"hidden":false,"merged":[[15,1,15,10],[19,5,19,10],[9,1,10,1],[9,2,10,10],[12,2,12,3],[12,6,12,10],[14,2,14,10],[1,1,1,10],[3,2,3,7],[5,1,5,6],[5,7,5,10],[7,1,7,10],[40,1,40,3],[78,1,78,4],[62,7,62,10],[17,1,17,10],[21,1,21,10],[22,1,24,10],[20,1,20,10],[72,1,72,5],[31,1,31,2],[37,6,37,10],[45,1,45,2],[56,1,56,2],[73,1,73,4],[26,1,26,11],[29,1,29,11],[54,1,54,11],[109,7,110,11],[63,7,64,11],[68,1,68,6],[95,1,95,4],[100,1,100,4],[87,1,87,4],[81,1,81,4],[86,1,86,4],[85,1,85,4],[84,1,84,5],[93,1,93,4],[94,1,94,4],[88,1,88,4],[89,1,89,4],[90,1,90,4],[91,1,91,4],[51,1,52,10],[101,1,101,4],[102,1,102,4],[103,1,103,4],[96,1,96,4],[97,1,97,4],[98,1,98,4],[99,1,99,4],[66,1,66,11],[92,1,92,4],[82,1,82,4],[79,1,79,4],[80,1,80,4],[77,1,77,4],[76,1,76,5]]}
[]
[" ","RICHIESTA EROGAZIONE 2° SAL "]
[]
[null,"La Società",{"$f":"+IF(ANAGRAFICA!C6=\"\",\"\",ANAGRAFICA!C6)","v":""},null,null,null,null,null,null,"Progetto N.",{"$f":"+IF(ANAGRAFICA!C2=\"\",\"\",ANAGRAFICA!C2)","v":""}]
[]
[null,"nella persona del ",null,null,null,null,null,{"$f":"+IF(ANAGRAFICA!C5=\"\",\"\",ANAGRAFICA!C5)","v":""}]
[]
[null,{"$f":"IF(OR(ANAGRAFICA!C3=\"\",ANAGRAFICA!C4=\"\"),\"\",CONCATENATE(ANAGRAFICA!C3, \" codice fiscale \",ANAGRAFICA!C4))","v":""}]
[]
[null,"Sede in",{"$f":"+IF(OR(ANAGRAFICA!C7=\"\",ANAGRAFICA!C8=\"\",ANAGRAFICA!H8=\"\"),\"\",CONCATENATE(ANAGRAFICA!C7,\" - \",ANAGRAFICA!C8,\" (\",ANAGRAFICA!H8,\")\"))","v":""}]
[]
[]
[null,"Partita IVA",{"$f":"+IF(ANAGRAFICA!C10=\"\",\"\",ANAGRAFICA!C10)","v":""},null,null,"CCIAA",{"$f":"+IF(OR(ANAGRAFICA!C11=\"\",ANAGRAFICA!E11=\"\"),\"\",CONCATENATE(ANAGRAFICA!C11,\" al N° \",ANAGRAFICA!E11))","v":""}]
[]
[null,"PEC",{"$f":"+IF(ANAGRAFICA!C9=\"\",\"\",ANAGRAFICA!C9)","v":""}]
[null,"CHIEDE L'EROGAZIONE DEL 2° SAL"]
[null,"per un importo pari ad €",null,{"$f":"+L37","v":0},"così ripartito:"]
[null,{"$f":"IFERROR(_xlfn.CONCAT(\"- Investimenti: € \",IF(L37=0,0,TEXT(L37,\"#.##0.00,00\")),\" corrispondenti al \",TEXT(L37/ANAGRAFICA!C17,\"0,0%\"), \" del valore degli investimenti ammessi alle agevolazioni pari ad  € \",TEXT(ANAGRAFICA!C17,\"#.##0.00\"),\" e così suddivisi:\"),\"\")","v":""}]
[null,"- Fatture quietanzate pari ad €",null,{"$f":"SUMIFS(L34:L36,J34:J36,\"SI\")","v":0}]
[null,"- Fatture NON quietanzate pari ad €",null,{"$f":"SUMIFS(L34:L36,J34:J36,\"NO\")","v":0},null,{"$f":"IFERROR(IF(D20/ANAGRAFICA!C17>30%,\"Superato limite del 30% per il 2° SAL previsto dalla normativa\",\"\"),\"\")","v":""}]
[null,{"$f":"+CONCATENATE(\"La somma eventualmente erogata dovrà essere accreditata sul c/c bancario intestato alla Società istituito presso l'istituto di credito \",ANAGRAFICA!K9,\" - Filiale/Agenzia \",ANAGRAFICA!K10)","v":"La somma eventualmente erogata dovrà essere accreditata sul c/c bancario intestato alla Società istituito presso l'istituto di credito  - Filiale/Agenzia "}]
[null,{"$f":"+CONCATENATE(\"IBAN di riferimento - \",ANAGRAFICA!K12)","v":"IBAN di riferimento - "}]
[null,"Detto conto corrente è dedicato, ancorché in via non esclusiva, al ricevimento delle agevolazioni concesse alla medesima società beneficiaria ai sensi dell'Ordinanza Ministeriale n.25 del 30 giugno 2022."]
[]
[]
[]
[null,"DETTAGLIO FATTURE RENDICONTATE"]
[]
[null,"1. ELENCO COMPLESSIVO DELLE FATTURE RENDICONTATE"]
[null,{"$f":"+CONCATENATE(\"Valore minimo rendicontabile è pari ad € \",TEXT(ANAGRAFICA!C17*0.1,\"#.##0.00\"),\" ed il valore delle fatture non quietanzate non può essere superiore ad € \",TEXT(ANAGRAFICA!C17*0.3,\"#.##0.00\"))","v":"Valore minimo rendicontabile è pari ad € 000 ed il valore delle fatture non quietanzate non può essere superiore ad € 000"}]
[null,"RICHIESTA EROGAZIONE 2° SAL B37"]
[null,"Fornitore "]
[null,"Partita IVA","Denominazione ","N. fatt.","Data fatt.","Descrizione","Imponibile fattura (*)","IVA e altri oneri","Importo fattura totale ","Quietanza Fatture","Categoria di spesa","Imponibile richiesto"]
[]
[]
[]
[null,null,null,null,null,null,{"$f":"SUM(G34:G36)","v":0},{"$f":"SUM(H34:H36)","v":0},0,null,null,{"$f":"SUM(L34:L36)","v":0}]
[null,null,null,null,null,null,"(*) Nel caso in cui l'impresa svolga esclusivamente attività ricompresa nel settore medico/sanitario (esente IVA),  il costo dell'IVA indetraibile, qualora richiesto ad agevolazione e come indicato nel Piano Esecutivo, va indicato insieme al valore dell'imponibile."]
[]
[]
[null,"La beneficiaria ha maturato e fruito di altre agevolazioni sui beni rendicontati",null,null,"NO"]
[]
[]
[null,"2. DETTAGLIO DELLE MODALITA' DI PAGAMENTO DELLE FATTURE QUIETANZATE"]
[]
[null,"Fornitore "]
[null,"Partita IVA","Denominazione ","N. fatt.","Data fatt.","Importo singolo pagamento","Modalità di pagamento","Data pagamento"]
[]
[]
[]
[null,null,null,null,null,{"$f":"SUM(F48:F50)","v":0}]
[null,"Tutte le fatture devono essere registrate nei libri contabili e/o registri fiscali previsti dal regime fiscale adottato e nel rispetto della normativa vigente"]
[]
[null,"3. DETTAGLIO PAGAMENTI FATTURE NON QUIETANZATE DEL PRECEDENTE SAL"]
[null,{"$f":"+IF(NAVIGATORE!G14-NAVIGATORE!J14,CONCATENATE(\"Evidenza dell'avvenuto pagamento delle fatture rendicontate nel precedente SAL pari ad €  \",TEXT(NAVIGATORE!G20,\"0.00\"),\"\"),\"\")","v":""}]
[]
[null,"Fornitore "]
[null,"Partita IVA","Denominazione ","N. fatt.","Data fatt.","Importo singolo pagamento","Modalità di pagamento","Data pagamento"]
[]
[]
[]
[null,null,null,null,null,{"$f":"SUM(F59:F61)","v":0}]
[]
[null,null,"LUOGO E DATA",null,null,null,null,{"$f":"+CONCATENATE(\"FIRMA DIGITALE DEL \",ANAGRAFICA!C5)","v":"FIRMA DIGITALE DEL "}]
[null,null,{"$f":"+CONCATENATE(ANAGRAFICA!C8,\" \",TEXT(TODAY(),\"gg/mm/aaaa\"))","v":" 07/11/2024"}]
[]
[null,"LA RICHIESTA DI EROGAZIONE DEVE ESSERE CORREDATA PENA DECADENZA DALLA SEGUENTE DOCUMENTAZIONE"]
[]
[null,"DICHIARAZIONI RICHIESTE PER ANTIMAFIA"]
[null,"ANT 1 - Dichiarazione Antimafia Società o ANT 2 - Dichiarazione Antimafia Cooperative",null,null,null,null,{"$f":"+IF(ANAGRAFICA!$C$21>=150000,\"Obbl.\",\"\")","v":""}]
[null,"ANT 3 - Familiari ",null,null,null,null,{"$f":"+IF(ANAGRAFICA!$C$21>=150000,\"Obbl.\",\"\")","v":""},{"$f":"+IF(ANAGRAFICA!C18>=150000,\"x\",\"\")","v":""}]
[]
[null,"GARANZIE"]
[null,"Privilegio Speciale",null,null,null,{"$f":"+IF(ANAGRAFICA!C18>=250000,\"Obbl.\",\"\")","v":""}]
[]
[]
[null,"DICHIARAZIONE SOSTITUTIVE ATTO NOTORIO"]
[null,"MOD 1 - Dichiarazioni Complessive",null,null,null,"Obbl."]
[null,"MOD 2 - Dichiarazione Fornitori. Nei casi in cui il mancato ottenimento delle precedenti quietanze di pagamento sia ascrivibile a cause non imputabili alla volontà del soggetto beneficiario, quest’ultimo è tenuto a inviare  la sua formale richiesta da notificare tramite PEC da inoltrare all'indirizzo del fornitore comunicato in camera di commercio mettendo tra i destinatari in copia conoscenza Invitalia (nextappennino_on@postacert.invitalia.it)",null,null,null,"Obbl."]
[null,"MOD 3 - Dichiarazione Assenza Precedenti",null,null,null,"Obbl."]
[null,"MOD 4 – Dichiarazioni Cedente",null,null,null,"Obbl. in caso di beni presso terzi"]
[null,"MOD 5 – Dichiarazione Impegno Cessionario",null,null,null,"Obbl. in caso di beni presso terzi"]
[null,"MOD 8 – Dichiarazione Antiriciclaggio",null,null,null,"Obbl."]
[]
[null,"ATTESTAZIONI E DOCUMENTI"]
[null," - Copia di un documento di riconoscimento in corso di validità",null,null,null,"Obbl."]
[null,"- Il presente documento dovrà essere inviato in excel e in pdf tramite l'apposito pulsante in alto a destra \"Stampa 2°SAL\". I precedenti file dovranno essere firmati digitalmente dal Legale Rappresentante",null,null,null,"Obbl."]
[null," - DSAN DURC",null,null,null,"Obbl."]
[null," - Copia dei titoli di spesa delle spese agevolate  e della contrattualistica di fornitura [Nota: I titoli di spesa devono riportare, nell’oggetto o nel campo note, l’indicazione del codice CUP (Codice Unico progetto) o della misura agevolativa “ON SISMA” nel caso di spese realizzate prima della ricezione della delibera di ammissione]",null,null,null,"Obbl."]
[null,"- Documento di trasporto (DDT) relativamente ai beni mobili oggetto di rendicontazione",null,null,null,"Obbl."]
[null," - Copia sottoscritta digitalmente dal Legale Rappresentante del libro cespiti ammortizzabili con evidenza delle registrazioni delle fatture rendicontate ",null,null,null,"Obbl."]
[null," - Copia sottoscritta digitalmente dal Legale Rappresentante del libro giornale, con evidenza delle registrazioni delle fatture rendicontate e, se quietanzate, dei relativi pagamenti",null,null,null,"Obbl."]
[null," - Copia sottoscritta digitalmente dal Legale Rappresentante del partitario fornitori, con evidenza delle registrazioni delle fatture rendicontate e, se quietanzate, dei relativi pagamenti",null,null,null,"Obbl."]
[null," - Copia sottoscritta digitalmente dal Legale Rappresentante degli estratti conto bancari o lista movimenti nel caso in cui l'estratto conto non sia disponibile. Si segnala che la lista movimenti deve contenere al suo interno tutti i riferimenti al c/c e al titolare dello stesso. I precedenti documenti devono evidenziare i pagamenti effettuati rispetto alle:\n a) spese sostenute e richieste nel SAL in corso (Tab. 2)\n b) spese rendicontate nel SAL precedente e successivamente pagate (Tab. 3) (solo per i SAL successivi al 1°)",null,null,null,"Obbl."]
[null,"- Delibera assembleare con l'impegno all'apporto privato nelle forme e nell'ammontare definite dal contratto",null,null,null,"Obbl."]
[null," - Situazione patrimoniale, all’ultima data utile, con evidenza dell'eventuale costituzione dell'impegno (rif. delibera assembleare)  ad effettuare l'apporto finanziario privato ed i relativi versamenti",null,null,null,"Obbl."]
[null," - Ultimo bilancio depositato",null,null,null,"Obbl."]
[null," - Perizia Asseverata che attesti la rispondenza dell’immobile agli specifici vincoli edilizi, urbanistici e di destinazione d’uso ovvero la loro avvenuta richiesta, laddove gli stessi non siano stati ancora rilasciati. La perizia deve essere presentata in caso di ultimazione degli interventi di nuova costruzione.",null,null,null,"Obbl. in caso di nuova costruzione"]
[null," - Relazione Tecnica del Direttore Lavori/Cantiere dello stato di avanzamento dei lavori connessi alle Opere Murarie (agevolate e non agevolate) relativa a:\n a) richieste e rilascio di permessi ed autorizzazioni abilitative all'avvio delle opere\n b) lavori realizzati\n c) lavori da realizzare\n d) variazioni eventuali intervenute in corso d'opera rispetto agli interventi approvati",null,null,null,"Obbl. in caso di spese per Opere Murarie"]
[null," - Documenti richiamati dalla perizia acquisiti durante l’iter autorizzativo alle Opere Murarie (es. C.I.L.A.)",null,null,null,"Obbl. in caso di spese per Opere Murarie e/o di nuova costruzione"]
[null,"- Per Impianti, macchinari e attrezzature che necessitano di autorizzazione e/o collaudi e/o dichiarazione di conformità, trasmetterne copia",null,null,null,"Obbl. nei casi richiamati"]
[null," - Copia dei contratti di acquisto dei beni mobili registrati e - in caso di mezzi targati - della carta di circolazione e del certificato di proprietà",null,null,null,"Obbl. in caso di spese specifiche"]
[null," - Attestazione dello stato di avanzamento degli interventi e della realizzazione del piano degli investimenti delle spese non agevolate (se previste), funzionali alla realizzazione del programma di investimento ",null,null,null,"Obbl. per spese realizzate ma non agevolate"]
[null,"- In caso di rendicontazione di spese relative ad attrezzature installate presso unità produttive diverse dall’unità interessata dal programma agevolato:\na) copia del libro dei beni prestati a terzi\nb) copia del titolo di disponibilità in uso a titolo gratuito, da parte del cessionario, delle attrezzature agevolate installate presso unità produttive diverse dall’unità produttiva interessata dal programma agevolato\nc) copia dei documenti di trasporto tenuti ai sensi del D.P.R. 6 ottobre 1978, n. 627, e del D.M. 29 novembre 1978 e ss.mm.ii., da cui risulta l’ubicazione di ciascun bene",null,null,null,"Obbl. in caso di spese specifiche"]
[]
[]
[]
[]
[]
[null,null,"LUOGO E DATA",null,null,null,null,{"$f":"+H64","v":"FIRMA DIGITALE DEL "}]
[null,null,{"$f":"+CONCATENATE(ANAGRAFICA!C42,\" \",TEXT(TODAY(),\"gg/mm/aaaa\"))","v":" 07/11/2024"}]

{"sheet":"2°SAL_Credito","index":9,"n_rows":13,"n_cols":8,"rows_kept":13,"cut":false,"hidden":false,"merged":[[2,0,2,7],[12,0,12,7]]}
[]
[]
["Dettaglio delle agevolazione fruite sui beni oggetto dell'investimento"]
["N. fatt.","Fornitore ","Data fatt.","Bene","Valore Imponibile  Bene","Tipo di agevolazione","Agevolazione maturata totale","di cui fruita"]
[]
[]
[]
[]
[]
[null,null,null,null,{"$f":"+SUM(E5:E9)","v":0},null,{"$f":"+SUM(G5:G9)","v":0},{"$f":"+SUM(H5:H9)","v":0}]
[]
[]
["La tabella deve riepilogare i beni oggetto di altre agevolazione (credito di imposta, fondi regionali ecc..), indicando le relative fatture e fornitore. Pertanto beni/fatture che non si riferiscono a beni oggetto di altre agevolazioni non dovranno essere elencati/e."]

{"sheet":"3°SAL","index":10,"n_rows":111,"n_cols":12,"rows_kept":111,"cut":false,"hidden":false,"merged":[[31,1,31,2],[37,6,37,10],[45,1,45,2],[56,1,56,2],[82,1,82,4],[40,1,40,3],[62,7,62,10],[54,1,54,11],[63,7,64,11],[66,1,66,11],[91,1,91,4],[92,1,92,4],[86,1,86,4],[87,1,87,4],[88,1,88,4],[89,1,89,4],[90,1,90,4],[84,1,84,5],[85,1,85,4],[72,1,72,5],[76,1,76,5],[79,1,79,4],[77,1,77,4],[73,1,73,4],[78,1,78,4],[1,1,1,10],[3,2,3,7],[5,1,5,6],[5,7,5,10],[7,1,7,10],[22,1,24,10],[29,1,29,11],[26,1,26,11],[9,1,10,1],[9,2,10,10],[12,2,12,3],[12,6,12,10],[14,2,14,10],[15,1,15,10],[19,5,19,10],[20,1,20,10],[17,1,17,10],[21,1,21,10],[109,7,110,11],[68,1,68,6],[51,1,52,10],[101,1,101,4],[102,1,102,4],[103,1,103,4],[96,1,96,4],[97,1,97,4],[98,1,98,4],[99,1,99,4],[94,1,94,4],[100,1,100,4],[95,1,95,4],[93,1,93,4],[80,1,80,4],[81,1,81,4]]}
[]
[" ","RICHIESTA EROGAZIONE 3° SAL"]
[]
[null,"La Società",{"$f":"+IF(ANAGRAFICA!C6=\"\",\"\",ANAGRAFICA!C6)","v":""},null,null,null,null,null,null,"Progetto N.",{"$f":"+IF(ANAGRAFICA!C2=\"\",\"\",ANAGRAFICA!C2)","v":""}]
[]
[null,"nella persona del ",null,null,null,null,null,{"$f":"+IF(ANAGRAFICA!C5=\"\",\"\",ANAGRAFICA!C5)","v":""}]
[]
[null,{"$f":"IF(OR(ANAGRAFICA!C3=\"\",ANAGRAFICA!C4=\"\"),\"\",CONCATENATE(ANAGRAFICA!C3, \" codice fiscale \",ANAGRAFICA!C4))","v":""}]
[]
[null,"Sede in",{"$f":"+IF(OR(ANAGRAFICA!C7=\"\",ANAGRAFICA!C8=\"\",ANAGRAFICA!H8=\"\"),\"\",CONCATENATE(ANAGRAFICA!C7,\" - \",ANAGRAFICA!C8,\" (\",ANAGRAFICA!H8,\")\"))","v":""}]
[]
[]
[null,"Partita IVA",{"$f":"+IF(ANAGRAFICA!C10=\"\",\"\",ANAGRAFICA!C10)","v":""},null,null,"CCIAA",{"$f":"+IF(OR(ANAGRAFICA!C11=\"\",ANAGRAFICA!E11=\"\"),\"\",CONCATENATE(ANAGRAFICA!C11,\" al N° \",ANAGRAFICA!E11))","v":""}]
[]
[null,"PEC",{"$f":"+IF(ANAGRAFICA!C9=\"\",\"\",ANAGRAFICA!C9)","v":""}]
[null,"CHIEDE L'EROGAZIONE DEL 3° SAL"]
[null,"per un importo pari ad €",null,{"$f":"+L37","v":0},"così ripartito:"]
[null,{"$f":"IFERROR(_xlfn.CONCAT(\"- Investimenti: € \",IF(L37=0,0,TEXT(L37,\"#.##0.00,00\")),\" corrispondenti al \",TEXT(L37/ANAGRAFICA!C17,\"0,0%\"), \" del valore degli investimenti ammessi alle agevolazioni pari ad  € \",TEXT(ANAGRAFICA!C17,\"#.##0.00\"),\" e così suddivisi:\"),\"\")","v":""}]
[null,"- Fatture quietanzate pari ad €",null,{"$f":"SUMIFS(L34:L36,J34:J36,\"SI\")","v":0}]
[null,"- Fatture NON quietanzate pari ad €",null,{"$f":"SUMIFS(L34:L36,J34:J36,\"NO\")","v":0},null,{"$f":"IFERROR(IF(D20/ANAGRAFICA!C17>30%,\"Superato limite del 30% per il 3° SAL previsto dalla normativa\",\"\"),\"\")","v":""}]
[null,{"$f":"+CONCATENATE(\"La somma eventualmente erogata dovrà essere accreditata sul c/c bancario intestato alla Società istituito presso l'istituto di credito \",ANAGRAFICA!K9,\" - Filiale/Agenzia \",ANAGRAFICA!K10)","v":"La somma eventualmente erogata dovrà essere accreditata sul c/c bancario intestato alla Società istituito presso l'istituto di credito  - Filiale/Agenzia "}]
[null,{"$f":"+CONCATENATE(\"IBAN di riferimento - \",ANAGRAFICA!K12)","v":"IBAN di riferimento - "}]
[null,"Detto conto corrente è dedicato, ancorché in via non esclusiva, al ricevimento delle agevolazioni concesse alla medesima società beneficiaria ai sensi dell'Ordinanza Ministeriale n.25 del 30 giugno 2022."]
[]
[]
[]
[null,"DETTAGLIO FATTURE RENDICONTATE"]
[]
[null,"1. ELENCO COMPLESSIVO DELLE FATTURE RENDICONTATE"]
[null,{"$f":"+CONCATENATE(\"Valore minimo rendicontabile è pari ad € \",TEXT(ANAGRAFICA!C17*0.1,\"#.##0.00\"),\" ed il valore delle fatture non quietanzate non può essere superiore ad € \",TEXT(ANAGRAFICA!C17*0.3,\"#.##0.00\"))","v":"Valore minimo rendicontabile è pari ad € 000 ed il valore delle fatture non quietanzate non può essere superiore ad € 000"}]
[]
[null,"Fornitore "]
[null,"Partita IVA","Denominazione ","N. fatt.","Data fatt.","Descrizione","Imponibile fattura (*)","IVA e altri oneri","Importo fattura totale ","Quietanza Fatture","Categoria di spesa","Imponibile richiesto"]
[]
[]
[]
[null,null,null,null,null,null,{"$f":"SUM(G34:G36)","v":0},{"$f":"SUM(H34:H36)","v":0},{"$f":"SUM(I34:I36)","v":0},null,null,{"$f":"SUM(L34:L36)","v":0}]
[null,null,null,null,null,null,"(*) Nel caso in cui l'impresa svolga esclusivamente attività ricompresa nel settore medico/sanitario (esente IVA),  il costo dell'IVA indetraibile, qualora richiesto ad agevolazione e come indicato nel Piano Esecutivo, va indicato insieme al valore dell'imponibile."]
[]
[]
[null,"La beneficiaria ha maturato e fruito di altre agevolazioni sui beni rendicontati",null,null,"NO"]
[]
[]
[null,"2. DETTAGLIO DELLE MODALITA' DI PAGAMENTO DELLE FATTURE QUIETANZATE"]
[]
[null,"Fornitore "]
[null,"Partita IVA","Denominazione ","N. fatt.","Data fatt.","Importo singolo pagamento","Modalità di pagamento","Data pagamento"]
[]
[]
[]
[null,null,null,null,null,{"$f":"SUM(F48:F50)","v":0}]
[null,"Tutte le fatture devono essere registrate nei libri contabili e/o registri fiscali previsti dal regime fiscale adottato e nel rispetto della normativa vigente"]
[]
[null,"3. DETTAGLIO PAGAMENTI FATTURE NON QUIETANZATE DEL PRECEDENTE SAL"]
[null,{"$f":"+IF(NAVIGATORE!G14-NAVIGATORE!J14,CONCATENATE(\"Evidenza dell'avvenuto pagamento delle fatture rendicontate nel precedente SAL pari ad €  \",TEXT(NAVIGATORE!G21,\"0.00\"),\"\"),\"\")","v":""}]
[]
[null,"Fornitore "]
[null,"Partita IVA","Denominazione ","N. fatt.","Data fatt.","Importo singolo pagamento","Modalità di pagamento","Data pagamento"]
[]
[]
[]
[null,null,null,null,null,{"$f":"SUM(F59:F61)","v":0}]
[]
[null,null,"LUOGO E DATA",null,null,null,null,{"$f":"+CONCATENATE(\"FIRMA DIGITALE DEL \",ANAGRAFICA!C5)","v":"FIRMA DIGITALE DEL "}]
[null,null,{"$f":"+CONCATENATE(ANAGRAFICA!C8,\" \",TEXT(TODAY(),\"gg/mm/aaaa\"))","v":" 07/11/2024"}]
[]
[null,"LA RICHIESTA DI EROGAZIONE DEVE ESSERE CORREDATA PENA DECADENZA DALLA SEGUENTE DOCUMENTAZIONE"]
[]
[null,"DICHIARAZIONI RICHIESTE PER ANTIMAFIA"]
[null,"ANT 1 - Dichiarazione Antimafia Società o ANT 2 - Dichiarazione Antimafia Cooperative",null,null,null,null,{"$f":"+IF(ANAGRAFICA!$C$21>=150000,\"Obbl.\",\"\")","v":""}]
[null,"ANT 3 - Familiari ",null,null,null,null,{"$f":"+IF(ANAGRAFICA!$C$21>=150000,\"Obbl.\",\"\")","v":""},{"$f":"+IF(ANAGRAFICA!C18>=150000,\"x\",\"\")","v":""}]
[]
[null,"GARANZIE"]
[null,"Privilegio Speciale",null,null,null,{"$f":"+IF(ANAGRAFICA!C18>=250000,\"Obbl.\",\"\")","v":""}]
[]
[]
[null,"DICHIARAZIONE SOSTITUTIVE ATTO NOTORIO"]
[null,"MOD 1 - Dichiarazioni Complessive",null,null,null,"Obbl."]
[null,"MOD 2 - Dichiarazione Fornitori. Nei casi in cui il mancato ottenimento delle precedenti quietanze di pagamento sia ascrivibile a cause non imputabili alla volontà del soggetto beneficiario, quest’ultimo è tenuto a inviare  la sua formale richiesta da notificare tramite PEC da inoltrare all'indirizzo del fornitore comunicato in camera di commercio mettendo tra i destinatari in copia conoscenza Invitalia (nextappennino_on@postacert.invitalia.it)",null,null,null,"Obbl."]
[null,"MOD 3 - Dichiarazione Assenza Precedenti",null,null,null,"Obbl."]
[null,"MOD 4 – Dichiarazioni Cedente",null,null,null,"Obbl. in caso di beni presso terzi"]
[null,"MOD 5 – Dichiarazione Impegno Cessionario",null,null,null,"Obbl. in caso di beni presso terzi"]
[null,"MOD 8 – Dichiarazione Antiriciclaggio",null,null,null,"Obbl."]
[]
[null,"ATTESTAZIONI E DOCUMENTI"]
[null," - Copia di un documento di riconoscimento in corso di validità",null,null,null,"Obbl."]
[null,"- Il presente documento dovrà essere inviato in excel e in pdf tramite l'apposito pulsante in alto a destra \"Stampa 3°SAL\". I precedenti file dovranno essere firmati digitalmente dal Legale Rappresentante",null,null,null,"Obbl."]
[null," - DSAN DURC",null,null,null,"Obbl."]
[null," - Copia dei titoli di spesa delle spese agevolate  e della contrattualistica di fornitura [Nota: I titoli di spesa devono riportare, nell’oggetto o nel campo note, l’indicazione del codice CUP (Codice Unico progetto) o della misura agevolativa “ON SISMA” nel caso di spese realizzate prima della ricezione della delibera di ammissione]",null,null,null,"Obbl."]
[null,"- Documento di trasporto (DDT) relativamente ai beni mobili oggetto di rendicontazione",null,null,null,"Obbl."]
[null," - Copia sottoscritta digitalmente dal Legale Rappresentante del libro cespiti ammortizzabili con evidenza delle registrazioni delle fatture rendicontate ",null,null,null,"Obbl."]
[null," - Copia sottoscritta digitalmente dal Legale Rappresentante del libro giornale, con evidenza delle registrazioni delle fatture rendicontate e, se quietanzate, dei relativi pagamenti",null,null,null,"Obbl."]
[null," - Copia sottoscritta digitalmente dal Legale Rappresentante del partitario fornitori, con evidenza delle registrazioni delle fatture rendicontate e, se quietanzate, dei relativi pagamenti",null,null,null,"Obbl."]
[null," - Copia sottoscritta digitalmente dal Legale Rappresentante degli estratti conto bancari o lista movimenti nel caso in cui l'estratto conto non sia disponibile. Si segnala che la lista movimenti deve contenere al suo interno tutti i riferimenti al c/c e al titolare dello stesso. I precedenti documenti devono evidenziare i pagamenti effettuati rispetto alle:\n a) spese sostenute e richieste nel SAL in corso (Tab. 2)\n b) spese rendicontate nel SAL precedente e successivamente pagate (Tab. 3) (solo per i SAL successivi al 1°)",null,null,null,"Obbl."]
[null,"- Delibera assembleare con l'impegno all'apporto privato nelle forme e nell'ammontare definite dal contratto",null,null,null,"Obbl."]
[null," - Situazione patrimoniale, all’ultima data utile, con evidenza dell'eventuale costituzione dell'impegno (rif. delibera assembleare)  ad effettuare l'apporto finanziario privato ed i relativi versamenti",null,null,null,"Obbl."]
[null," - Ultimo bilancio depositato",null,null,null,"Obbl."]
[null," - Perizia Asseverata che attesti la rispondenza dell’immobile agli specifici vincoli edilizi, urbanistici e di destinazione d’uso ovvero la loro avvenuta richiesta, laddove gli stessi non siano stati ancora rilasciati. La perizia deve essere presentata in caso di ultimazione degli interventi di nuova costruzione.",null,null,null,"Obbl. in caso di nuova costruzione"]
[null," - Relazione Tecnica del Direttore Lavori/Cantiere dello stato di avanzamento dei lavori connessi alle Opere Murarie (agevolate e non agevolate) relativa a:\n a) richieste e rilascio di permessi ed autorizzazioni abilitative all'avvio delle opere\n b) lavori realizzati\n c) lavori da realizzare\n d) variazioni eventuali intervenute in corso d'opera rispetto agli interventi approvati",null,null,null,"Obbl. in caso di spese per Opere Murarie"]
[null," - Documenti richiamati dalla perizia acquisiti durante l’iter autorizzativo alle Opere Murarie (es. C.I.L.A.)",null,null,null,"Obbl. in caso di spese per Opere Murarie e/o di nuova costruzione"]
[null,"- Per Impianti, macchinari e attrezzature che necessitano di autorizzazione e/o collaudi e/o dichiarazione di conformità, trasmetterne copia",null,null,null,"Obbl. nei casi richiamati"]
[null," - Copia dei contratti di acquisto dei beni mobili registrati e - in caso di mezzi targati - della carta di circolazione e del certificato di proprietà",null,null,null,"Obbl. in caso di spese specifiche"]
[null," - Attestazione dello stato di avanzamento degli interventi e della realizzazione del piano degli investimenti delle spese non agevolate (se previste), funzionali alla realizzazione del programma di investimento ",null,null,null,"Obbl. per spese realizzate ma non agevolate"]
[null,"- In caso di rendicontazione di spese relative ad attrezzature installate presso unità produttive diverse dall’unità interessata dal programma agevolato:\na) copia del libro dei beni prestati a terzi\nb) copia del titolo di disponibilità in uso a titolo gratuito, da parte del cessionario, delle attrezzature agevolate installate presso unità produttive diverse dall’unità produttiva interessata dal programma agevolato\nc) copia dei documenti di trasporto tenuti ai sensi del D.P.R. 6 ottobre 1978, n. 627, e del D.M. 29 novembre 1978 e ss.mm.ii., da cui risulta l’ubicazione di ciascun bene",null,null,null,"Obbl. in caso di spese specifiche"]
[]
[]
[]
[]
[]
[null,null,"LUOGO E DATA",null,null,null,null,{"$f":"+H64","v":"FIRMA DIGITALE DEL "}]
[null,null,{"$f":"+CONCATENATE(ANAGRAFICA!C42,\" \",TEXT(TODAY(),\"gg/mm/aaaa\"))","v":" 07/11/2024"}]

{"sheet":"3°SAL_Credito","index":11,"n_rows":12,"n_cols":8,"rows_kept":12,"cut":false,"hidden":false,"merged":[[2,0,2,7],[11,0,11,7]]}
[]
[]
["Dettaglio delle agevolazione fruite sui beni oggetto dell'investimento"]
["N. fatt.","Fornitore ","Data fatt.","Bene","Valore Imponibile  Bene","Tipo di agevolazione","Agevolazione maturata totale","di cui fruita"]
[]
[]
[]
[]
[null,null,null,null,{"$f":"+SUM(E5:E8)","v":0},null,{"$f":"+SUM(G5:G8)","v":0},{"$f":"+SUM(H5:H8)","v":0}]
[]
[]
["La tabella deve riepilogare i beni oggetto di altre agevolazione (credito di imposta, fondi regionali ecc..), indicando le relative fatture e fornitore. Pertanto beni/fatture che non si riferiscono a beni oggetto di altre agevolazioni non dovranno essere elencati/e."]

{"sheet":"4°SAL","index":12,"n_rows":111,"n_cols":12,"rows_kept":111,"cut":false,"hidden":false,"merged":[[56,1,56,2],[93,1,93,4],[21,1,21,10],[22,1,24,10],[62,7,62,10],[81,1,81,4],[84,1,84,5],[85,1,85,4],[79,1,79,4],[80,1,80,4],[76,1,76,5],[37,6,37,10],[82,1,82,4],[92,1,92,4],[91,1,91,4],[31,1,31,2],[45,1,45,2],[1,1,1,10],[3,2,3,7],[5,1,5,6],[5,7,5,10],[7,1,7,10],[9,1,10,1],[9,2,10,10],[12,2,12,3],[12,6,12,10],[14,2,14,10],[89,1,89,4],[15,1,15,10],[19,5,19,10],[20,1,20,10],[72,1,72,5],[73,1,73,4],[51,1,52,10],[17,1,17,10],[77,1,77,4],[78,1,78,4],[40,1,40,3],[26,1,26,11],[29,1,29,11],[54,1,54,11],[63,7,64,11],[66,1,66,11],[90,1,90,4],[86,1,86,4],[109,7,110,11],[68,1,68,6],[94,1,94,4],[100,1,100,4],[101,1,101,4],[102,1,102,4],[95,1,95,4],[96,1,96,4],[97,1,97,4],[98,1,98,4],[99,1,99,4],[103,1,103,4],[87,1,87,4],[88,1,88,4]]}
[]
[" ","RICHIESTA EROGAZIONE 4° SAL"]
[]
[null,"La Società",{"$f":"+IF(ANAGRAFICA!C6=\"\",\"\",ANAGRAFICA!C6)","v":""},null,null,null,null,null,null,"Progetto N.",{"$f":"+IF(ANAGRAFICA!C2=\"\",\"\",ANAGRAFICA!C2)","v":""}]
[]
[null,"nella persona del ",null,null,null,null,null,{"$f":"+IF(ANAGRAFICA!C5=\"\",\"\",ANAGRAFICA!C5)","v":""}]
[]
[null,{"$f":"IF(OR(ANAGRAFICA!C3=\"\",ANAGRAFICA!C4=\"\"),\"\",CONCATENATE(ANAGRAFICA!C3, \" codice fiscale \",ANAGRAFICA!C4))","v":""}]
[]
[null,"Sede in",{"$f":"+IF(OR(ANAGRAFICA!C7=\"\",ANAGRAFICA!C8=\"\",ANAGRAFICA!H8=\"\"),\"\",CONCATENATE(ANAGRAFICA!C7,\" - \",ANAGRAFICA!C8,\" (\",ANAGRAFICA!H8,\")\"))","v":""}]
[]
[]
[null,"Partita IVA",{"$f":"+IF(ANAGRAFICA!C10=\"\",\"\",ANAGRAFICA!C10)","v":""},null,null,"CCIAA",{"$f":"+IF(OR(ANAGRAFICA!C11=\"\",ANAGRAFICA!E11=\"\"),\"\",CONCATENATE(ANAGRAFICA!C11,\" al N° \",ANAGRAFICA!E11))","v":""}]
[]
[null,"PEC",{"$f":"+ANAGRAFICA!C9","v":0}]
[null,"CHIEDE L'EROGAZIONE DEL 4° SAL"]
[null,"per un importo pari ad €",null,{"$f":"+L37","v":0},"così ripartito:"]
[null,{"$f":"IFERROR(_xlfn.CONCAT(\"- Investimenti: € \",IF(L37=0,0,TEXT(L37,\"#.##0.00,00\")),\" corrispondenti al \",TEXT(L37/ANAGRAFICA!C17,\"0,0%\"), \" del valore degli investimenti ammessi alle agevolazioni pari ad  € \",TEXT(ANAGRAFICA!C17,\"#.##0.00\"),\" e così suddivisi:\"),\"\")","v":""}]
[null,"- Fatture quietanzate pari ad €",null,{"$f":"SUMIFS(L34:L36,J34:J36,\"SI\")","v":0}]
[null,"- Fatture NON quietanzate pari ad €",null,{"$f":"SUMIFS(L34:L36,J34:J36,\"NO\")","v":0},null,{"$f":"IFERROR(IF(D20/ANAGRAFICA!C17>30%,\"Superato limite del 30% per il 4° SAL previsto dalla normativa\",\"\"),\"\")","v":""}]
[null,{"$f":"+CONCATENATE(\"La somma eventualmente erogata dovrà essere accreditata sul c/c bancario intestato alla Società istituito presso l'istituto di credito \",ANAGRAFICA!K9,\" - Filiale/Agenzia \",ANAGRAFICA!K10)","v":"La somma eventualmente erogata dovrà essere accreditata sul c/c bancario intestato alla Società istituito presso l'istituto di credito  - Filiale/Agenzia "}]
[null,{"$f":"+CONCATENATE(\"IBAN di riferimento - \",ANAGRAFICA!K12)","v":"IBAN di riferimento - "}]
[null,"Detto conto corrente è dedicato, ancorché in via non esclusiva, al ricevimento delle agevolazioni concesse alla medesima società beneficiaria ai sensi dell'Ordinanza Ministeriale n.25 del 30 giugno 2022."]
[]
[]
[]
[null,"DETTAGLIO FATTURE RENDICONTATE"]
[]
[null,"1. ELENCO COMPLESSIVO DELLE FATTURE RENDICONTATE"]
[null,{"$f":"+CONCATENATE(\"Valore minimo rendicontabile è pari ad € \",TEXT(ANAGRAFICA!C17*0.1,\"#.##0.00\"),\" ed il valore delle fatture non quietanzate non può essere superiore ad € \",TEXT(ANAGRAFICA!C17*0.3,\"#.##0.00\"))","v":"Valore minimo rendicontabile è pari ad € 000 ed il valore delle fatture non quietanzate non può essere superiore ad € 000"}]
[]
[null,"Fornitore "]
[null,"Partita IVA","Denominazione ","N. fatt.","Data fatt.","Descrizione","Imponibile fattura (*)","IVA e altri oneri","Importo fattura totale ","Quietanza Fatture","Categoria di spesa","Imponibile richiesto"]
[]
[]
[]
[null,null,null,null,null,null,{"$f":"SUM(G34:G36)","v":0},{"$f":"SUM(H34:H36)","v":0},0,null,null,{"$f":"SUM(L34:L36)","v":0}]
[null,null,null,null,null,null,"(*) Nel caso in cui l'impresa svolga esclusivamente attività ricompresa nel settore medico/sanitario (esente IVA),  il costo dell'IVA indetraibile, qualora richiesto ad agevolazione e come indicato nel Piano Esecutivo, va indicato insieme al valore dell'imponibile."]
[]
[]
[null,"La beneficiaria ha maturato e fruito di altre agevolazioni sui beni rendicontati",null,null,"NO"]
[]
[]
[null,"2. DETTAGLIO DELLE MODALITA' DI PAGAMENTO DELLE FATTURE QUIETANZATE"]
[]
[null,"Fornitore "]
[null,"Partita IVA","Denominazione ","N. fatt.","Data fatt.","Importo singolo pagamento","Modalità di pagamento","Data pagamento"]
[]
[]
[]
[null,null,null,null,null,{"$f":"SUM(F48:F50)","v":0}]
[null,"Tutte le fatture devono essere registrate nei libri contabili e/o registri fiscali previsti dal regime fiscale adottato e nel rispetto della normativa vigente"]
[]
[null,"3. DETTAGLIO PAGAMENTI FATTURE NON QUIETANZATE DEL PRECEDENTE SAL"]
[null,{"$f":"+IF(NAVIGATORE!G14-NAVIGATORE!J14,CONCATENATE(\"Evidenza dell'avvenuto pagamento delle fatture rendicontate nel precedente SAL pari ad €  \",TEXT(NAVIGATORE!G22,\"0.00\"),\"\"),\"\")","v":""}]
[]
[null,"Fornitore "]
[null,"Partita IVA","Denominazione ","N. fatt.","Data fatt.","Importo singolo pagamento","Modalità di pagamento","Data pagamento"]
[]
[]
[]
[null,null,null,null,null,{"$f":"SUM(F59:F61)","v":0}]
[]
[null,null,"LUOGO E DATA",null,null,null,null,{"$f":"+CONCATENATE(\"FIRMA DIGITALE DEL \",ANAGRAFICA!C5)","v":"FIRMA DIGITALE DEL "}]
[null,null,{"$f":"+CONCATENATE(ANAGRAFICA!C8,\" \",TEXT(TODAY(),\"gg/mm/aaaa\"))","v":" 07/11/2024"}]
[]
[null,"LA RICHIESTA DI EROGAZIONE DEVE ESSERE CORREDATA PENA DECADENZA DALLA SEGUENTE DOCUMENTAZIONE"]
[]
[null,"DICHIARAZIONI RICHIESTE PER ANTIMAFIA"]
[null,"ANT 1 - Dichiarazione Antimafia Società o ANT 2 - Dichiarazione Antimafia Cooperative",null,null,null,null,{"$f":"+IF(ANAGRAFICA!$C$21>=150000,\"Obbl.\",\"\")","v":""}]
[null,"ANT 3 - Familiari ",null,null,null,null,{"$f":"+IF(ANAGRAFICA!$C$21>=150000,\"Obbl.\",\"\")","v":""},{"$f":"+IF(ANAGRAFICA!C18>=150000,\"x\",\"\")","v":""}]
[]
[null,"GARANZIE"]
[null,"Privilegio Speciale",null,null,null,{"$f":"+IF(ANAGRAFICA!C18>=250000,\"Obbl.\",\"\")","v":""}]
[]
[]
[null,"DICHIARAZIONE SOSTITUTIVE ATTO NOTORIO"]
[null,"MOD 1 - Dichiarazioni Complessive",null,null,null,"Obbl."]
[null,"MOD 2 - Dichiarazione Fornitori. Nei casi in cui il mancato ottenimento delle precedenti quietanze di pagamento sia ascrivibile a cause non imputabili alla volontà del soggetto beneficiario, quest’ultimo è tenuto a inviare  la sua formale richiesta da notificare tramite PEC da inoltrare all'indirizzo del fornitore comunicato in camera di commercio mettendo tra i destinatari in copia conoscenza Invitalia (nextappennino_on@postacert.invitalia.it)",null,null,null,"Obbl."]
[null,"MOD 3 - Dichiarazione Assenza Precedenti",null,null,null,"Obbl."]
[null,"MOD 4 – Dichiarazioni Cedente",null,null,null,"Obbl. in caso di beni presso terzi"]
[null,"MOD 5 – Dichiarazione Impegno Cessionario",null,null,null,"Obbl. in caso di beni presso terzi"]
[null,"MOD 8 – Dichiarazione Antiriciclaggio",null,null,null,"Obbl."]
[]
[null,"ATTESTAZIONI E DOCUMENTI"]
[null," - Copia di un documento di riconoscimento in corso di validità",null,null,null,"Obbl."]
[null,"- Il presente documento dovrà essere inviato in excel e in pdf tramite l'apposito pulsante in alto a destra \"Stampa 4°SAL\". I precedenti file dovranno essere firmati digitalmente dal Legale Rappresentante",null,null,null,"Obbl."]
[null," - DSAN DURC",null,null,null,"Obbl."]
[null," - Copia dei titoli di spesa delle spese agevolate  e della contrattualistica di fornitura [Nota: I titoli di spesa devono riportare, nell’oggetto o nel campo note, l’indicazione del codice CUP (Codice Unico progetto) o della misura agevolativa “ON SISMA” nel caso di spese realizzate prima della ricezione della delibera di ammissione]",null,null,null,"Obbl."]
[null,"- Documento di trasporto (DDT) relativamente ai beni mobili oggetto di rendicontazione",null,null,null,"Obbl."]
[null," - Copia sottoscritta digitalmente dal Legale Rappresentante del libro cespiti ammortizzabili con evidenza delle registrazioni delle fatture rendicontate ",null,null,null,"Obbl."]
[null," - Copia sottoscritta digitalmente dal Legale Rappresentante del libro giornale, con evidenza delle registrazioni delle fatture rendicontate e, se quietanzate, dei relativi pagamenti",null,null,null,"Obbl."]
[null," - Copia sottoscritta digitalmente dal Legale Rappresentante del partitario fornitori, con evidenza delle registrazioni delle fatture rendicontate e, se quietanzate, dei relativi pagamenti",null,null,null,"Obbl."]
[null," - Copia sottoscritta digitalmente dal Legale Rappresentante degli estratti conto bancari o lista movimenti nel caso in cui l'estratto conto non sia disponibile. Si segnala che la lista movimenti deve contenere al suo interno tutti i riferimenti al c/c e al titolare dello stesso. I precedenti documenti devono evidenziare i pagamenti effettuati rispetto alle:\n a) spese sostenute e richieste nel SAL in corso (Tab. 2)\n b) spese rendicontate nel SAL precedente e successivamente pagate (Tab. 3) (solo per i SAL successivi al 1°)",null,null,null,"Obbl."]
[null,"- Delibera assembleare con l'impegno all'apporto privato nelle forme e nell'ammontare definite dal contratto",null,null,null,"Obbl."]
[null," - Situazione patrimoniale, all’ultima data utile, con evidenza dell'eventuale costituzione dell'impegno (rif. delibera assembleare)  ad effettuare l'apporto finanziario privato ed i relativi versamenti",null,null,null,"Obbl."]
[null," - Ultimo bilancio depositato",null,null,null,"Obbl."]
[null," - Perizia Asseverata che attesti la rispondenza dell’immobile agli specifici vincoli edilizi, urbanistici e di destinazione d’uso ovvero la loro avvenuta richiesta, laddove gli stessi non siano stati ancora rilasciati. La perizia deve essere presentata in caso di ultimazione degli interventi di nuova costruzione.",null,null,null,"Obbl. in caso di nuova costruzione"]
[null," - Relazione Tecnica del Direttore Lavori/Cantiere dello stato di avanzamento dei lavori connessi alle Opere Murarie (agevolate e non agevolate) relativa a:\n a) richieste e rilascio di permessi ed autorizzazioni abilitative all'avvio delle opere\n b) lavori realizzati\n c) lavori da realizzare\n d) variazioni eventuali intervenute in corso d'opera rispetto agli interventi approvati",null,null,null,"Obbl. in caso di spese per Opere Murarie"]
[null," - Documenti richiamati dalla perizia acquisiti durante l’iter autorizzativo alle Opere Murarie (es. C.I.L.A.)",null,null,null,"Obbl. in caso di spese per Opere Murarie e/o di nuova costruzione"]
[null,"- Per Impianti, macchinari e attrezzature che necessitano di autorizzazione e/o collaudi e/o dichiarazione di conformità, trasmetterne copia",null,null,null,"Obbl. nei casi richiamati"]
[null," - Copia dei contratti di acquisto dei beni mobili registrati e - in caso di mezzi targati - della carta di circolazione e del certificato di proprietà",null,null,null,"Obbl. in caso di spese specifiche"]
[null," - Attestazione dello stato di avanzamento degli interventi e della realizzazione del piano degli investimenti delle spese non agevolate (se previste), funzionali alla realizzazione del programma di investimento ",null,null,null,"Obbl. per spese realizzate ma non agevolate"]
[null,"- In caso di rendicontazione di spese relative ad attrezzature installate presso unità produttive diverse dall’unità interessata dal programma agevolato:\na) copia del libro dei beni prestati a terzi\nb) copia del titolo di disponibilità in uso a titolo gratuito, da parte del cessionario, delle attrezzature agevolate installate presso unità produttive diverse dall’unità produttiva interessata dal programma agevolato\nc) copia dei documenti di trasporto tenuti ai sensi del D.P.R. 6 ottobre 1978, n. 627, e del D.M. 29 novembre 1978 e ss.mm.ii., da cui risulta l’ubicazione di ciascun bene",null,null,null,"Obbl. in caso di spese specifiche"]
[]
[]
[]
[]
[]
[null,null,"LUOGO E DATA",null,null,null,null,{"$f":"+H64","v":"FIRMA DIGITALE DEL "}]
[null,null,{"$f":"+CONCATENATE(ANAGRAFICA!C42,\" \",TEXT(TODAY(),\"gg/mm/aaaa\"))","v":" 07/11/2024"}]

{"sheet":"4°SAL_Credito","index":13,"n_rows":12,"n_cols":8,"rows_kept":12,"cut":false,"hidden":false,"merged":[[2,0,2,7],[11,0,11,7]]}
[]
[]
["Dettaglio delle agevolazione fruite sui beni oggetto dell'investimento"]
["N. fatt.","Fornitore ","Data fatt.","Bene","Valore Imponibile  Bene","Tipo di agevolazione","Agevolazione maturata totale","di cui fruita"]
[]
[]
[]
[]
[null,null,null,null,{"$f":"+SUM(E5:E8)","v":0},null,{"$f":"+SUM(G5:G8)","v":0},{"$f":"+SUM(H5:H8)","v":0}]
[]
[]
["La tabella deve riepilogare i beni oggetto di altre agevolazione (credito di imposta, fondi regionali ecc..), indicando le relative fatture e fornitore. Pertanto beni/fatture che non si riferiscono a beni oggetto di altre agevolazioni non dovranno essere elencati/e."]

{"sheet":"SALDO","index":14,"n_rows":109,"n_cols":11,"rows_kept":109,"cut":false,"hidden":false,"merged":[[55,1,55,2],[36,6,36,9],[82,1,82,4],[65,1,65,10],[62,7,63,10],[79,1,79,4],[80,1,80,4],[71,1,71,5],[72,1,72,4],[75,1,75,5],[76,1,76,4],[77,1,77,4],[78,1,78,4],[67,1,67,6],[12,2,12,3],[12,6,12,10],[14,2,14,10],[15,1,15,10],[20,1,20,10],[17,1,17,10],[9,1,10,1],[9,2,10,10],[1,1,1,10],[3,2,3,7],[5,1,5,6],[5,7,5,10],[7,1,7,10],[101,1,101,4],[85,1,85,4],[94,1,94,4],[95,1,95,4],[96,1,96,4],[97,1,97,4],[93,1,93,4],[21,1,21,10],[22,1,24,10],[53,1,53,10],[39,1,39,3],[26,1,26,10],[30,1,30,2],[44,1,44,2],[103,1,103,4],[107,7,108,10],[50,1,51,10],[102,1,102,4],[91,1,91,4],[92,1,92,4],[81,1,81,4],[84,1,84,5],[86,1,86,4],[87,1,87,4],[88,1,88,4],[89,1,89,4],[90,1,90,4],[98,1,98,4],[99,1,99,4],[100,1,100,4]]}
[]
[" ","RICHIESTA EROGAZIONE SALDO"]
[]
[null,"La Società",{"$f":"+IF(ANAGRAFICA!C6=\"\",\"\",ANAGRAFICA!C6)","v":""},null,null,null,null,null,null,"Progetto N.",{"$f":"+IF(ANAGRAFICA!C2=\"\",\"\",ANAGRAFICA!C2)","v":""}]
[]
[null,"nella persona del ",null,null,null,null,null,{"$f":"+IF(ANAGRAFICA!C5=\"\",\"\",ANAGRAFICA!C5)","v":""}]
[]
[null,{"$f":"IF(OR(ANAGRAFICA!C3=\"\",ANAGRAFICA!C4=\"\"),\"\",CONCATENATE(ANAGRAFICA!C3, \" codice fiscale \",ANAGRAFICA!C4))","v":""}]
[]
[null,"Sede in",{"$f":"+IF(OR(ANAGRAFICA!C7=\"\",ANAGRAFICA!C8=\"\",ANAGRAFICA!H8=\"\"),\"\",CONCATENATE(ANAGRAFICA!C7,\" - \",ANAGRAFICA!C8,\" (\",ANAGRAFICA!H8,\")\"))","v":""}]
[]
[]
[null,"Partita IVA",{"$f":"+IF(ANAGRAFICA!C10=\"\",\"\",ANAGRAFICA!C10)","v":""},null,null,"CCIAA",{"$f":"+IF(OR(ANAGRAFICA!C11=\"\",ANAGRAFICA!E11=\"\"),\"\",CONCATENATE(ANAGRAFICA!C11,\" al N° \",ANAGRAFICA!E11))","v":""}]
[]
[null,"PEC",{"$f":"+IF(ANAGRAFICA!C9=\"\",\"\",ANAGRAFICA!C9)","v":""}]
[null,"CHIEDE L'EROGAZIONE DEL SALDO"]
[null,"per un importo pari ad €",null,{"$f":"+K36","v":0},"così ripartito:"]
[null,{"$f":"IFERROR(_xlfn.CONCAT(\"- Investimenti: € \",IF(K36=0,0,TEXT(K36,\"#.##0.00,00\")),\" corrispondenti al \",TEXT(K36/ANAGRAFICA!C17,\"0,0%\"), \" del valore degli investimenti ammessi alle agevolazioni pari ad  € \",TEXT(ANAGRAFICA!C17,\"#.##0.00\"),\"\"),\"\")","v":""}]
[]
[]
[null,{"$f":"+CONCATENATE(\"La somma eventualmente erogata dovrà essere accreditata sul c/c bancario intestato alla Società istituito presso l'istituto di credito \",ANAGRAFICA!K9,\" - Filiale/Agenzia \",ANAGRAFICA!K10)","v":"La somma eventualmente erogata dovrà essere accreditata sul c/c bancario intestato alla Società istituito presso l'istituto di credito  - Filiale/Agenzia "}]
[null,{"$f":"+CONCATENATE(\"IBAN di riferimento - \",ANAGRAFICA!K12)","v":"IBAN di riferimento - "}]
[null,"Detto conto corrente è dedicato, ancorché in via non esclusiva, al ricevimento delle agevolazioni concesse alla medesima società beneficiaria ai sensi dell'Ordinanza Ministeriale n.25 del 30 giugno 2022."]
[]
[]
[]
[null,"DETTAGLIO FATTURE RENDICONTATE"]
[]
[null,"1. ELENCO COMPLESSIVO DELLE FATTURE RENDICONTATE"]
[]
[null,"Fornitore "]
[null,"Partita IVA","Denominazione ","N. fatt.","Data fatt.","Descrizione","Imponibile fattura (*)","IVA e altri oneri","Importo fattura totale ","Categoria di spesa","Imponibile richiesto"]
[]
[]
[]
[null,null,null,null,null,null,{"$f":"SUM(G33:G35)","v":0},null,null,null,{"$f":"SUM(K33:K35)","v":0}]
[null,null,null,null,null,null,"(*) Nel caso in cui l'impresa svolga esclusivamente attività ricompresa nel settore medico/sanitario (esente IVA),  il costo dell'IVA indetraibile, qualora richiesto ad agevolazione e come indicato nel Piano Esecutivo, va indicato insieme al valore dell'imponibile."]
[]
[]
[null,"La beneficiaria ha maturato e fruito di altre agevolazioni sui beni rendicontati",null,null,"NO"]
[]
[]
[null,"2. DETTAGLIO DELLE MODALITA' DI PAGAMENTO DELLE FATTURE QUIETANZATE"]
[]
[null,"Fornitore "]
[null,"Partita IVA","Denominazione ","N. fatt.","Data fatt.","Importo singolo pagamento","Modalità di pagamento","Data pagamento"]
[]
[]
[]
[null,null,null,null,null,{"$f":"SUM(F47:F49)","v":0}]
[null,"Tutte le fatture devono essere registrate nei libri contabili e/o registri fiscali previsti dal regime fiscale adottato e nel rispetto della normativa vigente"]
[]
[null,"3. DETTAGLIO PAGAMENTI FATTURE NON QUIETANZATE DEL PRECEDENTE SAL"]
[null,{"$f":"+IF(NAVIGATORE!G25-NAVIGATORE!J14,CONCATENATE(\"Evidenza dell'avvenuto pagamento delle fatture rendicontate nel precedente SAL pari ad €  \",TEXT(NAVIGATORE!G25-NAVIGATORE!J14,\"0.00\"),\"\"),\"\")","v":""}]
[]
[null,"Fornitore "]
[null,"Partita IVA","Denominazione ","N. fatt.","Data fatt.","Importo singolo pagamento","Modalità di pagamento","Data pagamento"]
[]
[]
[]
[null,null,null,null,null,{"$f":"SUM(F58:F60)","v":0}]
[]
[null,null,"LUOGO E DATA",null,null,null,null,{"$f":"+CONCATENATE(\"FIRMA DIGITALE DEL \",ANAGRAFICA!C5)","v":"FIRMA DIGITALE DEL "}]
[null,null,{"$f":"+CONCATENATE(ANAGRAFICA!C8,\" \",TEXT(TODAY(),\"gg/mm/aaaa\"))","v":" 07/11/2024"}]
[]
[null,"LA RICHIESTA DI EROGAZIONE DEVE ESSERE CORREDATA PENA DECADENZA DALLA SEGUENTE DOCUMENTAZIONE"]
[]
[null,"DICHIARAZIONI RICHIESTE PER ANTIMAFIA"]
[null,"ANT 1 - Dichiarazione Antimafia Società o ANT 2 - Dichiarazione Antimafia Cooperative",null,null,null,null,{"$f":"+IF(ANAGRAFICA!$C$21>=150000,\"Obbl.\",\"\")","v":""}]
[null,"ANT 3 - Familiari ",null,null,null,null,{"$f":"+IF(ANAGRAFICA!$C$21>=150000,\"Obbl.\",\"\")","v":""}]
[]
[null,"GARANZIE"]
[null,"Privilegio Speciale",null,null,null,{"$f":"+IF(ANAGRAFICA!C18>=250000,\"Obbl.\",\"\")","v":""}]
[]
[]
[null,"DICHIARAZIONE SOSTITUTIVE ATTO NOTORIO"]
[null,"MOD 1 - Dichiarazioni Complessive",null,null,null,"Obbl."]
[null,"MOD 2 - Dichiarazione Fornitori. Nei casi in cui il mancato ottenimento delle precedenti quietanze di pagamento sia ascrivibile a cause non imputabili alla volontà del soggetto beneficiario, quest’ultimo è tenuto a inviare  la sua formale richiesta da notificare tramite PEC da inoltrare all'indirizzo del fornitore comunicato in camera di commercio mettendo tra i destinatari in copia conoscenza Invitalia (nextappennino_on@postacert.invitalia.it)",null,null,null,"Obbl."]
[null,"MOD 3 - Dichiarazione Assenza Precedenti",null,null,null,"Obbl."]
[null,"MOD 4 – Dichiarazioni Cedente",null,null,null,"Obbl. in caso di beni presso terzi"]
[null,"MOD 5 – Dichiarazione Impegno Cessionario",null,null,null,"Obbl. in caso di beni presso terzi"]
[null,"MOD 6 - Dichiarazione Ultimazione Programma",null,null,null,"Obbl."]
[null,"MOD 8 – Dichiarazione Antiriciclaggio",null,null,null,"Obbl."]
[]
[null,"ATTESTAZIONI E DOCUMENTI"]
[null," - Copia di un documento di riconoscimento in corso di validità",null,null,null,"Obbl."]
[null,"- Il presente documento dovrà essere inviato in excel e in pdf tramite l'apposito pulsante in alto a destra \"Stampa SALDO\". I precedenti file dovranno essere firmati digitalmente dal Legale Rappresentante",null,null,null,"Obbl."]
[null," - DSAN DURC",null,null,null,"Obbl."]
[null," - Copia dei titoli di spesa delle spese agevolate  e della contrattualistica di fornitura [Nota: I titoli di spesa devono riportare, nell’oggetto o nel campo note, l’indicazione del codice CUP (Codice Unico progetto) o della misura agevolativa “ON SISMA” nel caso di spese realizzate prima della ricezione della delibera di ammissione]",null,null,null,"Obbl."]
[null,"- Documento di trasporto (DDT) relativamente ai beni mobili oggetto di rendicontazione",null,null,null,"Obbl."]
[null," - Copia sottoscritta digitalmente dal Legale Rappresentante del libro cespiti ammortizzabili con evidenza delle registrazioni delle fatture rendicontate ",null,null,null,"Obbl."]
[null," - Copia sottoscritta digitalmente dal Legale Rappresentante del libro giornale, con evidenza delle registrazioni delle fatture rendicontate e, se quietanzate, dei relativi pagamenti",null,null,null,"Obbl."]
[null," - Copia sottoscritta digitalmente dal Legale Rappresentante del partitario fornitori, con evidenza delle registrazioni delle fatture rendicontate e, se quietanzate, dei relativi pagamenti",null,null,null,"Obbl."]
[null," - Copia sottoscritta digitalmente dal Legale Rappresentante degli estratti conto bancari o lista movimenti nel caso in cui l'estratto conto non sia disponibile. Si segnala che la lista movimenti deve contenere al suo interno tutti i riferimenti al c/c e al titolare dello stesso. I precedenti documenti devono evidenziare i pagamenti effettuati rispetto alle:\n a) spese sostenute e richieste nel SAL in corso (Tab. 2)\n b) spese rendicontate nel SAL precedente e successivamente pagate (Tab. 3) (solo per i SAL successivi al 1°)",null,null,null,"Obbl."]
[null,"- Delibera assembleare con l'impegno all'apporto privato nelle forme e nell'ammontare definite dal contratto",null,null,null,"Obbl."]
[null," - Situazione patrimoniale, all’ultima data utile, con evidenza dell'eventuale costituzione dell'impegno (rif. delibera assembleare)  ad effettuare l'apporto finanziario privato ed i relativi versamenti",null,null,null,"Obbl."]
[null," - Ultimo bilancio depositato",null,null,null,"Obbl."]
[null," - Perizia Asseverata che attesti la rispondenza dell’immobile agli specifici vincoli edilizi, urbanistici e di destinazione d’uso ovvero la loro avvenuta richiesta, laddove gli stessi non siano stati ancora rilasciati. La perizia deve essere presentata in caso di ultimazione degli interventi di nuova costruzione.",null,null,null,"Obbl. in caso di nuova costruzione"]
[null," - Relazione Tecnica del Direttore Lavori/Cantiere dello stato di avanzamento dei lavori connessi alle Opere Murarie (agevolate e non agevolate) relativa a:\n a) richieste e rilascio di permessi ed autorizzazioni abilitative all'avvio delle opere\n b) lavori realizzati\n c) lavori da realizzare\n d) variazioni eventuali intervenute in corso d'opera rispetto agli interventi approvati",null,null,null,"Obbl. in caso di spese per Opere Murarie"]
[null," - Documenti richiamati dalla perizia acquisiti durante l’iter autorizzativo alle Opere Murarie (es. C.I.L.A.)",null,null,null,"Obbl. in caso di spese per Opere Murarie e/o di nuova costruzione"]
[null,"- Per Impianti, macchinari e attrezzature che necessitano di autorizzazione e/o collaudi e/o dichiarazione di conformità, trasmetterne copia",null,null,null,"Obbl. nei casi richiamati"]
[null," - Copia dei contratti di acquisto dei beni mobili registrati e - in caso di mezzi targati - della carta di circolazione e del certificato di proprietà",null,null,null,"Obbl. in caso di spese specifiche"]
[null," - Attestazione dello stato di avanzamento degli interventi e della realizzazione del piano degli investimenti delle spese non agevolate (se previste), funzionali alla realizzazione del programma di investimento ",null,null,null,"Obbl. per spese realizzate ma non agevolate"]
[null,"- In caso di rendicontazione di spese relative ad attrezzature installate presso unità produttive diverse dall’unità interessata dal programma agevolato:\na) copia del libro dei beni prestati a terzi\nb) copia del titolo di disponibilità in uso a titolo gratuito, da parte del cessionario, delle attrezzature agevolate installate presso unità produttive diverse dall’unità produttiva interessata dal programma agevolato\nc) copia dei documenti di trasporto tenuti ai sensi del D.P.R. 6 ottobre 1978, n. 627, e del D.M. 29 novembre 1978 e ss.mm.ii., da cui risulta l’ubicazione di ciascun bene",null,null,null,"Obbl. in caso di spese specifiche"]
[]
[]
[]
[null,null,"LUOGO E DATA",null,null,null,null,{"$f":"+H63","v":"FIRMA DIGITALE DEL "}]
[null,null,{"$f":"+CONCATENATE(ANAGRAFICA!C45,\" \",TEXT(TODAY(),\"gg/mm/aaaa\"))","v":" 07/11/2024"}]

{"sheet":"CASISTICA CAPOIII","index":15,"n_rows":39,"n_cols":18,"rows_kept":39,"cut":false,"hidden":true,"merged":[[12,7,12,11],[6,10,6,11],[19,7,19,10],[20,7,20,10],[13,7,13,10],[14,7,14,10],[15,7,15,10],[36,7,36,10],[38,7,38,10],[37,7,37,10],[35,7,35,10],[27,7,27,10],[28,7,28,10],[29,7,29,10],[30,7,30,10],[31,7,31,10],[32,7,32,10],[33,7,33,10],[34,7,34,10],[26,7,26,10],[21,7,21,10],[22,7,22,10],[23,7,23,10],[1,1,1,5],[2,1,3,1],[2,3,3,3],[2,4,3,4],[2,5,3,5],[2,2,3,2],[1,7,3,11],[6,8,6,9],[5,7,5,11],[17,7,17,11],[25,7,25,11],[18,7,18,10]]}
[]
[null,"EVENTO EROGAZ.",null,null,null,null,null,"TAVOLA SINOTTICA PER LA DETERMINAZIONE DELLA DOCUMENTAZIONE DA INSERIRE NELLA RICHIESTA DI EROGAZIONE"]
[null,"ANTICIPO","1° SAL","SAL INTERMEDI","SALDO","SALDO UNICO"]
[]
[]
[null,"x","x","x","x","x",null,"DICHIARAZIONI RICHIESTE PER ANTIMAFIA"]
[null,null,null,null,null,null,null,"IMPORTO TOTALE AGEVOLAZIONE CONCESSA","tra 150.000€ e 250.000€",null,">250.000€"]
[null,null,null,null,null,null,null,"TIPOLOGIA SOCIETARIA","Società","Coop","Società","Coop"]
[null,"x","x","x","x","x",null,"ANT 1 - Dichiarazione Antimafia Società","x",null,"x"]
[null,"x","x","x","x","x",null,"ANT 2- Dichiarazione Antimafia Cooperative",null,"x",null,"x"]
[null,"x","x","x","x","x",null,"ANT 3 - Familiari ","x","x","x","x"]
[]
[null,"x","x","x","x","x",null,"GARANZIE"]
[null,"x",null,null,null,null,null,"Fideiussione o polizza fideiussioria",null,null,null,{"$f":"+IF(ANTICIPO!C18>0,\"x\",\"\")","v":""}]
[null,null,"x","x","x","x",null,"Privilegio Speciale",null,null,null,{"$f":"+IF(ANAGRAFICA!C18>=250000,\"x\",\"\")","v":""}]
[null,null,"x",null,null,"x",null,"Ipoteca 1° Grado immobile nel caso di acquisto di immobile (solo CAPOIII)",null,null,null,{"$f":"IF(COUNTIF('1°SAL'!K34:K37,APP!D2)>0,\"x\",0)","v":0}]
[]
[null,"x","x","x","x","x",null,"DICHIARAZIONE SOSTITUTIVE ATTO NOTORIO"]
[null,"x","x","x","x","x",null,"MOD 1 - Dichiarazioni Complessive",null,null,null,"x"]
[null,null,"x","x","x","x",null,"MOD 2 - Dichiarazione Fornitori",null,null,null,"x"]
[null,"x","x","x","x","x",null,"MOD 3 - Dichiarazione Assenza Precenti",null,null,null,"x"]
[null,null,"x","x","x","x",null,"MOD 4 – Dichiarazioni Cedente",null,null,null,"x"]
[null,null,"x","x","x","x",null,"MOD 5 – Dichiarazione Impegno Cessionario",null,null,null,"x"]
[null,null,null,null,"x","x",null,"MOD 6 - Dichiarazione Ultimazione Programma",null,null,null,"x",null,null,null,null,null," "]
[]
[null,"x","x","x","x","x",null,"ATTESTAZIONI E DOCUMENTI"]
[null,"x","x","x","x","x",null," - Copia di un documento di riconoscimento in corso di validità",null,null,null,"x"]
[null,null,"x",null,null,"x",null," - Attestazione della disponibilità dei locali idonei all’attività d’impresa",null,null,null,"x",null,null,null,null,null," "]
[null,null,"x",null,null,"x",null," - Attestazione della rispondenza dell’immobile agli specifici vincoli edilizi, urbanistici e di destinazione d’uso ovvero la loro avvenuta richiesta, laddove gli stessi non siano stati ancora rilasciati",null,null,null,"x"]
[null,null,"x","x","x","x",null," - Attestazione dello stato di avanzamento degli interventi e della realizzazione del piano degli investimenti delle spese non agevolate, funzionali alla realizzazione del programma di investimento ",null,null,null,"x"]
[null,null,"x","x","x","x",null," - Copia dei titoli di spesa delle spese agevolaTe  e della contrattualistica di fornitura [Nota: I titoli di spesa devono riportare, anche mediante l’utilizzo di apposito timbro, la dicitura: ",null,null,null,"x"]
[null,null,"x","x","x","x",null," - Copia dei contratto di acquisto dei beni mobili registrati e - in caso di mezzi targati - della carta di circolazione e del certificato di proprietà",null,null,null,"x"]
[null,null,"x","x","x","x",null," - Copia sottoscritta digitalmente dal Legale Rappresentante del libro cespiti ammortizzabili con evidenza delle registrazioni delle fatture rendicontate ",null,null,null,"x"]
[null,null,"x","x","x","x",null," - Copia sottoscritta digitalmente dal Legale Rappresentante del libro giornale, con evidenza delle registrazioni delle fatture rendicontate e, se quietanzate, dei relativi pagamenti",null,null,null,"x"]
[null,null,"x","x","x","x",null," - Copia sottoscritta digitalmente dal Legale Rappresentante degli estratti conto bancari con evidenza: dei pagamenti effettuati rispetto alle spese:\n a) dei pagamenti effettuati rispetto alle spese sostenute e richieste nel SAL in corso (Tab. 2);\n b) dei pagamenti effettuati rispetto alle spese rendicontate nel SAL precedente e successivamente pagate (Tab. 3) (solo per i SAL successivi al 1°);\nc) dei versamenti della quota di apporto del contributo finanziario in relazione al SAL rendicontato",null,null,null,"x"]
[null,null,"x","x","x","x",null," - Situazione patrimoniale , all’ultima data utile, che evidenzia i versamenti effettuati a titolo di apporto finanziario privato",null,null,null,"x"]
[null,null,"x","x","x","x",null," - Copia della polizza assicurativa, vincolata a favore di Invitalia, contro il rischio di incendio/accessori e delle quietanze attestanti il regolare pagamento dei premi",null,null,null,"x"]
[null,null,"x","x","x","x",null,"- In caso di rendicontazione di spese relative ad attrezzature installate presso unità produttive diverse dall’unità interessata dal programma agevolato:\na) copia del libro dei beni prestati a terzi\nb) copia del titolo di disponibilità in uso a titolo gratuito, da parte del cessionario, delle attrezzature agevolate installate presso unità produttive diverse dall’unità produttiva interessata dal programma agevolato\nc) copia dei documenti di trasporto tenuti ai sensi del D.P.R. 6 ottobre 1978, n. 627, e del D.M. 29 novembre 1978 e ss.mm.ii., da cui risulta l’ubicazione di ciascun bene",null,null,null,"x"]
[null,null,"x","x","x","x",null," - Relazione Tecnica del Direttore Lavori/Cantiere dello stato di avanzamento dei lavori connessi alle Opere Murarie (agevolate e non agevolate) relativa a:\n a) richieste e rilascio di permessi ed autorizzazioni abilitative all'avvio delle opere\n b) lavori realizzati\n c) lavori da realizzare\n d) variazioni eventuali intervenute in corso d'opera",null,null,null,"x"]

{"sheet":"SALDO_Credito","index":16,"n_rows":12,"n_cols":8,"rows_kept":12,"cut":false,"hidden":false,"merged":[[2,0,2,7],[11,0,11,7]]}
[]
[]
["Dettaglio delle agevolazione fruite sui beni oggetto dell'investimento"]
["N. fatt.","Fornitore ","Data fatt.","Bene","Valore Imponibile  Bene","Tipo di agevolazione","Agevolazione maturata totale","di cui fruita"]
[]
[]
[]
[]
[null,null,null,null,{"$f":"+SUM(E5:E8)","v":0},null,{"$f":"+SUM(G5:G8)","v":0},{"$f":"+SUM(H5:H8)","v":0}]
[]
[]
["La tabella deve riepilogare i beni oggetto di altre agevolazione (credito di imposta, fondi regionali ecc..), indicando le relative fatture e fornitore. Pertanto beni/fatture che non si riferiscono a beni oggetto di altre agevolazioni non dovranno essere elencati/e."]

{"sheet":"UNICO","index":17,"n_rows":99,"n_cols":11,"rows_kept":99,"cut":false,"hidden":false,"merged":[[74,1,74,4],[78,1,78,4],[68,1,68,4],[69,1,69,4],[70,1,70,4],[71,1,71,4],[72,1,72,4],[73,1,73,4],[76,1,76,5],[65,1,65,4],[67,1,67,5],[45,1,45,2],[31,1,31,2],[37,6,37,9],[64,1,64,4],[9,1,10,1],[9,2,10,10],[12,2,12,3],[12,6,12,10],[14,2,14,10],[1,1,1,10],[3,2,3,7],[5,1,5,6],[5,7,5,10],[7,1,7,10],[15,1,15,10],[20,1,20,10],[63,1,63,5],[56,1,56,10],[53,7,54,10],[22,1,24,10],[26,1,26,10],[21,1,21,10],[17,1,17,10],[40,1,40,3],[51,1,52,10],[59,1,59,6],[88,1,88,4],[89,1,89,4],[90,1,90,4],[91,1,91,4],[77,1,77,4],[83,1,83,4],[84,1,84,4],[86,1,86,4],[87,1,87,4],[85,1,85,4],[79,1,79,4],[80,1,80,4],[81,1,81,4],[82,1,82,4],[93,1,93,4],[94,1,94,4],[95,1,95,4],[97,7,98,10],[92,1,92,4]]}
[]
[" ","RICHIESTA EROGAZIONE UNICA SOLUZIONE"]
[]
[null,"La Società",{"$f":"+IF(ANAGRAFICA!C6=\"\",\"\",ANAGRAFICA!C6)","v":""},null,null,null,null,null,null,"Progetto N.",{"$f":"+IF(ANAGRAFICA!C2=\"\",\"\",ANAGRAFICA!C2)","v":""}]
[]
[null,"nella persona del ",null,null,null,null,null,{"$f":"+IF(ANAGRAFICA!C5=\"\",\"\",ANAGRAFICA!C5)","v":""}]
[]
[null,{"$f":"IF(OR(ANAGRAFICA!C3=\"\",ANAGRAFICA!C4=\"\"),\"\",CONCATENATE(ANAGRAFICA!C3, \" codice fiscale \",ANAGRAFICA!C4))","v":""}]
[]
[null,"Sede in",{"$f":"+IF(OR(ANAGRAFICA!C7=\"\",ANAGRAFICA!C8=\"\",ANAGRAFICA!H8=\"\"),\"\",CONCATENATE(ANAGRAFICA!C7,\" - \",ANAGRAFICA!C8,\" (\",ANAGRAFICA!H8,\")\"))","v":""}]
[]
[]
[null,"Partita IVA",{"$f":"+IF(ANAGRAFICA!C10=\"\",\"\",ANAGRAFICA!C10)","v":""},null,null,"CCIAA",{"$f":"+IF(OR(ANAGRAFICA!C11=\"\",ANAGRAFICA!E11=\"\"),\"\",CONCATENATE(ANAGRAFICA!C11,\" al N° \",ANAGRAFICA!E11))","v":""}]
[]
[null,"PEC",{"$f":"+IF(ANAGRAFICA!C9=\"\",\"\",ANAGRAFICA!C9)","v":""}]
[null,"CHIEDE L'EROGAZIONE IN UNICA SOLUZIONE"]
[null,"per un importo pari ad €",null,{"$f":"+K37","v":0},"così ripartito:"]
[null,{"$f":"IFERROR(_xlfn.CONCAT(\"- Investimenti: € \",IF(K37=0,0,TEXT(K37,\"#.##0.00,00\")),\" corrispondenti al \",TEXT(K37/ANAGRAFICA!C17,\"0,0%\"), \" del valore degli investimenti ammessi alle agevolazioni pari ad  € \",TEXT(ANAGRAFICA!C17,\"#.##0.00\"),\"\"),\"\")","v":""}]
[]
[]
[null,{"$f":"+CONCATENATE(\"La somma eventualmente erogata dovrà essere accreditata sul c/c bancario intestato alla Società istituito presso l'istituto di credito \",ANAGRAFICA!K9,\" - Filiale/Agenzia \",ANAGRAFICA!K10)","v":"La somma eventualmente erogata dovrà essere accreditata sul c/c bancario intestato alla Società istituito presso l'istituto di credito  - Filiale/Agenzia "}]
[null,{"$f":"+CONCATENATE(\"IBAN di riferimento - \",ANAGRAFICA!K12)","v":"IBAN di riferimento - "}]
[null,"Detto conto corrente è dedicato, ancorché in via non esclusiva, al ricevimento delle agevolazioni concesse alla medesima società beneficiaria ai sensi dell'Ordinanza Ministeriale n.25 del 30 giugno 2022."]
[]
[]
[]
[null,"DETTAGLIO FATTURE RENDICONTATE"]
[]
[]
[null,"1. ELENCO COMPLESSIVO DELLE FATTURE RENDICONTATE"]
[]
[null,"Fornitore "]
[null,"Partita IVA","Denominazione ","N. fatt.","Data fatt.","Descrizione","Imponibile fattura (*)","IVA e altri oneri","Importo fattura totale ","Categoria di spesa","Imponibile richiesto"]
[]
[]
[]
[null,null,null,null,null,null,{"$f":"SUM(G34:G36)","v":0},null,null,null,{"$f":"SUM(K34:K36)","v":0}]
[null,null,null,null,null,null,"(*) Nel caso in cui l'impresa svolga esclusivamente attività ricompresa nel settore medico/sanitario (esente IVA),  il costo dell'IVA indetraibile, qualora richiesto ad agevolazione e come indicato nel Piano Esecutivo, va indicato insieme al valore dell'imponibile."]
[]
[]
[null,"La beneficiaria ha maturato e fruito di altre agevolazioni sui beni rendicontati",null,null,"NO"]
[]
[]
[null,"2. DETTAGLIO DELLE MODALITA' DI PAGAMENTO DELLE FATTURE QUIETANZATE"]
[]
[null,"Fornitore "]
[null,"Partita IVA","Denominazione ","N. fatt.","Data fatt.","Importo singolo pagamento","Modalità di pagamento","Data pagamento"]
[]
[]
[]
[null,null,null,null,null,{"$f":"SUM(F48:F50)","v":0}]
[null,"Tutte le fatture devono essere registrate nei libri contabili e/o registri fiscali previsti dal regime fiscale adottato e nel rispetto della normativa vigente"]
[]
[null,null,"LUOGO E DATA",null,null,null,null,{"$f":"+CONCATENATE(\"FIRMA DIGITALE DEL \",ANAGRAFICA!C5)","v":"FIRMA DIGITALE DEL "}]
[null,null,{"$f":"+CONCATENATE(ANAGRAFICA!C8,\" \",TEXT(TODAY(),\"gg/mm/aaaa\"))","v":" 07/11/2024"}]
[]
[null,"LA RICHIESTA DI EROGAZIONE DEVE ESSERE CORREDATA PENA DECADENZA DALLA SEGUENTE DOCUMENTAZIONE"]
[]
[]
[null,"DICHIARAZIONI RICHIESTE PER ANTIMAFIA"]
[null,"ANT 1 - Dichiarazione Antimafia Società o ANT 2 - Dichiarazione Antimafia Cooperative",null,null,null,null,{"$f":"+IF(ANAGRAFICA!$C$21>=150000,\"Obbl.\",\"\")","v":""}]
[null,"ANT 3 - Familiari ",null,null,null,null,{"$f":"+IF(ANAGRAFICA!$C$21>=150000,\"Obbl.\",\"\")","v":""},{"$f":"+IF(ANAGRAFICA!C18>=150000,\"x\",\"\")","v":""}]
[]
[null,"GARANZIE"]
[null,"Privilegio Speciale",null,null,null,{"$f":"+IF(ANAGRAFICA!C18>=250000,\"Obbl.\",\"\")","v":""}]
[null,"Ipoteca 1° Grado immobile nel caso di costruzione di immobile",null,null,null,{"$f":"IF(COUNTIF('1°SAL'!K34:K37,APP!D2)>0,\"Obbl.\",0)","v":0}]
[]
[null,"DICHIARAZIONE SOSTITUTIVE ATTO NOTORIO"]
[null,"MOD 1 - Dichiarazioni Complessive",null,null,null,"Obbl."]
[null,"MOD 2 - Dichiarazione Fornitori",null,null,null,"Obbl."]
[null,"MOD 3 - Dichiarazione Assenza Precenti",null,null,null,"Obbl."]
[null,"MOD 4 – Dichiarazioni Cedente",null,null,null,"Obbl. in caso di beni presso terzi"]
[null,"MOD 5 – Dichiarazione Impegno Cessionario",null,null,null,"Obbl. in caso di beni presso terzi"]
[null,"MOD 6 - Dichiarazione Ultimazione Programma",null,null,null,"Obbl."]
[null,"MOD 8 – Dichiarazione Antiriciclaggio",null,null,null,"Obbl."]
[]
[null,"ATTESTAZIONI E DOCUMENTI"]
[null," - Copia di un documento di riconoscimento in corso di validità",null,null,null,"Obbl."]
[null,"- Il presente documento dovrà essere inviato in excel e in pdf tramite l'apposito pulsante in alto a destra \"Stampa UNICA SOLUZIONE\". I precedenti file dovranno essere firmati digitalmente dal Legale Rappresentante",null,null,null,"Obbl."]
[null," - DSAN DURC",null,null,null,"Obbl."]
[null," - Copia dei titoli di spesa delle spese agevolate  e della contrattualistica di fornitura [Nota: I titoli di spesa devono riportare, nell’oggetto o nel campo note, l’indicazione del codice CUP (Codice Unico progetto) o della misura agevolativa “ON SISMA” nel caso di spese realizzate prima della ricezione della delibera di ammissione]",null,null,null,"Obbl."]
[null,"- Documento di trasporto (DDT) relativamente ai beni mobili oggetto di rendicontazione",null,null,null,"Obbl."]
[null," - Copia sottoscritta digitalmente dal Legale Rappresentante del libro cespiti ammortizzabili con evidenza delle registrazioni delle fatture rendicontate ",null,null,null,"Obbl."]
[null," - Copia sottoscritta digitalmente dal Legale Rappresentante del libro giornale, con evidenza delle registrazioni delle fatture rendicontate e, se quietanzate, dei relativi pagamenti",null,null,null,"Obbl."]
[null," - Copia sottoscritta digitalmente dal Legale Rappresentante del partitario fornitori, con evidenza delle registrazioni delle fatture rendicontate e, se quietanzate, dei relativi pagamenti",null,null,null,"Obbl."]
[null," - Copia sottoscritta digitalmente dal Legale Rappresentante degli estratti conto bancari o lista movimenti nel caso in cui l'estratto conto non sia disponibile. Si segnala che la lista movimenti deve contenere al suo interno tutti i riferimenti al c/c e al titolare dello stesso. I precedenti documenti devono evidenziare i pagamenti effettuati rispetto alle:\n a) spese sostenute e richieste nel SAL in corso (Tab. 2)\n b) spese rendicontate nel SAL precedente e successivamente pagate (Tab. 3) (solo per i SAL successivi al 1°)",null,null,null,"Obbl."]
[null,"- Delibera assembleare con l'impegno all'apporto privato nelle forme e nell'ammontare definite dal contratto",null,null,null,"Obbl."]
[null," - Situazione patrimoniale, all’ultima data utile, con evidenza dell'eventuale costituzione dell'impegno (rif. delibera assembleare)  ad effettuare l'apporto finanziario privato ed i relativi versamenti",null,null,null,"Obbl."]
[null," - Ultimo bilancio depositato",null,null,null,"Obbl."]
[null," - Perizia Asseverata che attesti la rispondenza dell’immobile agli specifici vincoli edilizi, urbanistici e di destinazione d’uso ovvero la loro avvenuta richiesta, laddove gli stessi non siano stati ancora rilasciati. La perizia deve essere presentata in caso di ultimazione degli interventi di nuova costruzione.",null,null,null,"Obbl. in caso di nuova costruzione"]
[null," - Relazione Tecnica del Direttore Lavori/Cantiere dello stato di avanzamento dei lavori connessi alle Opere Murarie (agevolate e non agevolate) relativa a:\n a) richieste e rilascio di permessi ed autorizzazioni abilitative all'avvio delle opere\n b) lavori realizzati\n c) lavori da realizzare\n d) variazioni eventuali intervenute in corso d'opera rispetto agli interventi approvati",null,null,null,"Obbl. in caso di spese per Opere Murarie"]
[null," - Documenti richiamati dalla perizia acquisiti durante l’iter autorizzativo alle Opere Murarie (es. C.I.L.A.)",null,null,null,"Obbl. in caso di spese per Opere Murarie e/o di nuova costruzione"]
[null,"- Per Impianti, macchinari e attrezzature che necessitano di autorizzazione e/o collaudi e/o dichiarazione di conformità, trasmetterne copia",null,null,null,"Obbl. nei casi richiamati"]
[null," - Copia dei contratti di acquisto dei beni mobili registrati e - in caso di mezzi targati - della carta di circolazione e del certificato di proprietà",null,null,null,"Obbl. in caso di spese specifiche"]
[null," - Attestazione dello stato di avanzamento degli interventi e della realizzazione del piano degli investimenti delle spese non agevolate (se previste), funzionali alla realizzazione del programma di investimento ",null,null,null,"Obbl. per spese realizzate ma non agevolate"]
[null,"- In caso di rendicontazione di spese relative ad attrezzature installate presso unità produttive diverse dall’unità interessata dal programma agevolato:\na) copia del libro dei beni prestati a terzi\nb) copia del titolo di disponibilità in uso a titolo gratuito, da parte del cessionario, delle attrezzature agevolate installate presso unità produttive diverse dall’unità produttiva interessata dal programma agevolato\nc) copia dei documenti di trasporto tenuti ai sensi del D.P.R. 6 ottobre 1978, n. 627, e del D.M. 29 novembre 1978 e ss.mm.ii., da cui risulta l’ubicazione di ciascun bene",null,null,null,"Obbl. in caso di spese specifiche"]
[]
[null,null,"LUOGO E DATA",null,null,null,null,{"$f":"+CONCATENATE(\"FIRMA DIGITALE DEL \",ANAGRAFICA!C43)","v":"FIRMA DIGITALE DEL "}]
[null,null,{"$f":"+CONCATENATE(ANAGRAFICA!C46,\" \",TEXT(TODAY(),\"gg/mm/aaaa\"))","v":" 07/11/2024"}]

{"sheet":"UNICO_Credito","index":18,"n_rows":12,"n_cols":8,"rows_kept":12,"cut":false,"hidden":false,"merged":[[2,0,2,7],[11,0,11,7]]}
[]
[]
["Dettaglio delle agevolazione fruite sui beni oggetto dell'investimento"]
["N. fatt.","Fornitore ","Data fatt.","Bene","Valore Imponibile  Bene","Tipo di agevolazione","Agevolazione maturata totale","di cui fruita"]
[]
[]
[]
[]
[null,null,null,null,{"$f":"+SUM(E5:E8)","v":0},null,{"$f":"+SUM(G5:G8)","v":0},{"$f":"+SUM(H5:H8)","v":0}]
[]
[]
["La tabella deve riepilogare i beni oggetto di altre agevolazione (credito di imposta, fondi regionali ecc..), indicando le relative fatture e fornitore. Pertanto beni/fatture che non si riferiscono a beni oggetto di altre agevolazioni non dovranno essere elencati/e."]

{"sheet":"APP","index":19,"n_rows":18,"n_cols":16,"rows_kept":18,"cut":false,"hidden":true,"merged":[]}
[null,{"$f":"+IF(OR(ANAGRAFICA!G2=\"\",ANAGRAFICA!G2=\"CAPO II\"),\"CAPO II\",\"CAPO III\")","v":"CAPO II"},"CAPO II","CAPO III","MODALITA",null,null,null,null,null,"Art. 22 GBER",null,"Art. 17 GBER",null,null,"SRL"]
[1,"Opere murarie e assimilate","Opere murarie e assimilate","Opere murarie e assimilate","Assegno Bancario",null,null,null,null,null,null,null,"Covid",null,null,"SRLS"]
[2,"Macchinari, impianti ed attrezzature","Macchinari, impianti ed attrezzature","Macchinari, impianti ed attrezzature","Assegno Circolare",null,null,null,null,null,null,null,"Ucraina",null,null,"SRL Unipersonale"]
[3,"Programmi informatici e servizi per le tecnologie dell’informazione e della comunicazione","Programmi informatici e servizi per le tecnologie dell’informazione e della comunicazione","Programmi informatici e servizi per le tecnologie dell’informazione e della comunicazione","Bonifico",null,null,null,null,null,null,null,null,null,null,"SPA"]
[4,"Brevetti, licenze e marchi","Brevetti, Licenze e Marchi","Brevetti, licenze e marchi","Carta Credito",null,null,null,null,null,null,null,null,null,null,"SAPA"]
[5,"Consulenze specialistiche capitalizzabili","Consulenze specialistiche capitalizzabili","Consulenze specialistiche capitalizzabili","Carte POS",null,null,null,null,null,null,null,null,null,null,"SNC"]
[6,{"$f":"IF(HLOOKUP($B$1,$C$1:$D$7,(A7+1),0)=0,\"\",HLOOKUP($B$1,$C$1:$D$7,(A7+1),0))","v":"Oneri connessi alla stipula contratto di finanziamento (ad esempio spese notarili) e per la costituzione della società"},"Oneri connessi alla stipula contratto di finanziamento (ad esempio spese notarili) e per la costituzione della società",null,"RIBA",null,null,null,null,null,null,null,null,null,null,"SAS"]
[null,null,null,null,null,null,null,null,null,null,null,null,null,null,null,"SRL STP"]
[null,null,null,null,null,null,null,null,null,null,null,null,null,null,null,"SRLS STP"]
[null,null,null,null,null,null,null,null,null,null,null,null,null,null,null,"SPA STP"]
[null,null,null,null,null,null,null,null,null,null,null,null,null,null,null,"SAPA STP"]
[null,null,null,null,null,null,null,null,null,null,null,null,null,null,null,"SNC STP"]
[null,null,null,null,null,null,null,null,null,null,null,null,null,null,null,"SAS STP"]
[null,null,null,null,null,null,null,null,null,null,null,null,null,null,null,"Soc. cons. srl"]
[null,null,null,null,null,null,null,null,null,null,null,null,null,null,null,"Soc. Coop."]
[null,null,null,null,null,null,null,null,null,null,null,null,null,null,null,"Soc. Coop. STP"]
[null,null,null,null,null,null,null,null,null,null,null,null,null,null,null,"Soc. Cons. A.R.L."]
[null,null,null,null,null,null,null,null,null,null,null,null,null,null,null,"Società estera"]